Cogmind - Beta 17 @@@ ROGUE MODE // 2026.07.12 @ 13:51:30 // Winter2019/RPGLIKE Player: Gallgagger Result: Establishing 0b11! Performance ------------- Evolutions (9) 4500 Regions Visited (38) 7600 Robots Destroyed (2540) 12700 Value Destroyed (159594) 159594 Prototype IDs (377) 7540 Alien Tech Used (6) 1200 Bonus (221796) 221796 TOTAL SCORE: 414930 Bonus ------- Triggered High Security 5500 High Alert Combat Kills 114621 Follower Combat Kills 229 Hunted by Unchained 2500 Destroyed Unchained 3000 Entered Garrisons 400 Aligned with FarCom 300 Met Data Miner 300 Acquired ECA 300 Met Zhirov 300 Met Warlord at Base 500 MAIN.C Attacked Warlord 500 Warlord Defense Kills 33882 Met Warlord at Research 2000 Scanned by Researcher 500 Destroyed Superfortress 15000 Destroyed MAIN.C Guards 500 Met MAIN.C 5000 Destroyed MAIN.C Shell 5000 Destroyed MAIN.C 10000 Met Architect 300 Destroyed A8 300 Destroyed A6 400 Destroyed A5 500 Destroyed A4 700 Destroyed A3 800 Destroyed A2 1000 Destroyed Architect 15000 Win 3000 Friendly Fire -536 Cogmind --------- Core Integrity 234/900 Matter 290/300 Energy 328/340 System Corruption 0% Temperature Cool (16) Movement Flying (18) Location 0b11 Command Parts ------- > --- POWER (2) -------- Concept Zero-point Core Concept Zero-point Core > --- PROPULSION (6) --- Cooled Impulse Thruster Cooled Impulse Thruster Experimental Biomechanical Wings Experimental Biomechanical Wings Concept Fieldthrust Drive Concept Fieldthrust Drive > --- UTILITY (13) ----- Concept Dimensional Manipulator Experimental Active Sensor Suite Experimental Core Analyzer Improved Armor Integrity Analyzer Experimental Kinecellerator Advanced Weapon Cycler Experimental Focal Shield Thermal Barrier Advanced Hardlight Generator Advanced System Restoration Module Concept Matter Streamer > --- WEAPON (5) ------- XL Autogun Array Experimental Neutron Missile Launcher > --- INVENTORY (6) ---- Protomatter-78 Concept NT7 Matterbank (750) Experimental Powered Armor Peak State ------------ > --- POWER ------------ Concept Zero-point Core Concept Zero-point Core > --- PROPULSION ------- Cooled Impulse Thruster Cooled Impulse Thruster Experimental Biomechanical Wings Experimental Biomechanical Wings Concept Fieldthrust Drive Concept Fieldthrust Drive > --- UTILITY ---------- Concept Dimensional Manipulator Experimental Active Sensor Suite Experimental Kinecellerator Advanced Weapon Cycler Experimental Focal Shield Thermal Barrier Advanced Hardlight Generator Advanced System Restoration Module Concept Matter Streamer Concept Navigation Harness > --- WEAPON ----------- XL Autogun Array Experimental Neutron Missile Launcher > --- INVENTORY -------- Concept NT7 Matterbank Launcher Loader Transdimensional Reconstructor Subatomic Replicator [Rating: 259] Favorites ----------- Power Concept Zero-point Core Engine Heavy Deuterium Engine Power Core Concept Zero-point Core Reactor Light Quantum Reactor Propulsion VTOL Module Wheel Wheel Flight Unit VTOL Module Utility Active Sensor Suite Device Active Sensor Suite Storage Concept NT7 Matterbank Processor Experimental Core Analyzer Protection Experimental Powered Armor Weapon XL Autogun Array Energy Gun Small Laser Energy Cannon Vortex Cannon Ballistic Gun XL Autogun Array Ballistic Cannon Linear Accelerator Launcher Experimental Neutron Missile Launcher Special Weapon Improved Remote Datajack Build | -11 -10 -10 -10 -9 -8 -8 -7 -7 -7 -7 -7 -7 -6 -6 -6 -6 -6 -6 -6 -5 -5 -5 -5 -5 -4 -4 -4 -4 -4 -3 -3 -3 -2 -2 -2 -1 -1 -1 ------- Run | Yrd Mat Min Exi Min Mat Gar Fac Gar Fac Low Low Dat Pro Fac Was Fac Low Low Zio Pro Fac Upp Upp Zhi Pro Fac Upp Upp War Pro Res Tes Res Qua Frg Acc Com Ac0 Slots Evolved 22 | 3 3 1 . . 5 . 3 . . . . . . . . . . 1 . . . . . . . 1 . . 2 . . 1 . . 1 . . 1 Power 1 | . . . . . . . . . . . . . . . . . . . . . . . . . . . . . 1 . . . . . . . . . Propulsion 5 | . 1 1 . . 1 . 1 . . . . . . . . . . . . . . . . . . . . . 1 . . . . . . . . . Utility 12 | . 2 . . . 4 . 2 . . . . . . . . . . . . . . . . . . 1 . . . . . 1 . . 1 . . 1 Weapon 4 | 3 . . . . . . . . . . . . . . . . . 1 . . . . . . . . . . . . . . . . . . . . Parts Attached 134 | 6 7 1 2 1 7 . 6 2 2 1 . . . . . 11 . 2 2 . 17 . 1 2 . 5 . . 17 . 7 3 . 2 24 1 2 3 Power 15 | 1 1 . . . 2 . . 1 . . . . . . . 1 . . . . 1 . . 1 . . . . 4 . 1 . . . 2 . . . Engine 3 | 1 . . . . 2 . . . . . . . . . . . . . . . . . . . . . . . . . . . . . . . . . Core 5 | . 1 . . . . . . . . . . . . . . 1 . . . . . . . . . . . . 1 . . . . . 2 . . . Reactor 7 | . . . . . . . . 1 . . . . . . . . . . . . 1 . . 1 . . . . 3 . 1 . . . . . . . Propulsion 28 | 1 2 1 . . 1 . 4 . 1 . . . . . . 2 . 1 . . 2 . . . . 2 . . 4 . . 1 . 1 5 . . . Treads . | . . . . . . . . . . . . . . . . . . . . . . . . . . . . . . . . . . . . . . . Leg . | . . . . . . . . . . . . . . . . . . . . . . . . . . . . . . . . . . . . . . . Wheel 1 | 1 . . . . . . . . . . . . . . . . . . . . . . . . . . . . . . . . . . . . . . Hover . | . . . . . . . . . . . . . . . . . . . . . . . . . . . . . . . . . . . . . . . Flight 27 | . 2 1 . . 1 . 4 . 1 . . . . . . 2 . 1 . . 2 . . . . 2 . . 4 . . 1 . 1 5 . . . Utility 71 | 1 2 . 1 1 4 . 2 1 1 1 . . . . . 8 . . . . 12 . 1 1 . 3 . . 6 . 5 2 . 1 14 . 2 2 Device 55 | 1 1 . 1 1 3 . 2 1 1 1 . . . . . 5 . . . . 11 . 1 . . 3 . . 5 . 5 2 . 1 9 . . 1 Storage 1 | . . . . . . . . . . . . . . . . . . . . . . . . . . . . . . . . . . . 1 . . . Processor 12 | . 1 . . . 1 . . . . . . . . . . 3 . . . . 1 . . . . . . . 1 . . . . . 3 . 2 . Hackware . | . . . . . . . . . . . . . . . . . . . . . . . . . . . . . . . . . . . . . . . Protection 3 | . . . . . . . . . . . . . . . . . . . . . . . . 1 . . . . . . . . . . 1 . . 1 Artifact . | . . . . . . . . . . . . . . . . . . . . . . . . . . . . . . . . . . . . . . . Weapon 20 | 3 2 . 1 . . . . . . . . . . . . . . 1 2 . 2 . . . . . . . 3 . 1 . . . 3 1 . 1 Energy Gun 6 | 2 1 . . . . . . . . . . . . . . . . . 2 . . . . . . . . . 1 . . . . . . . . . Energy Cannon 2 | . . . . . . . . . . . . . . . . . . . . . . . . . . . . . 1 . . . . . 1 . . . Ballistic Gun 3 | 1 1 . 1 . . . . . . . . . . . . . . . . . . . . . . . . . . . . . . . . . . . Ballistic Cannon 3 | . . . . . . . . . . . . . . . . . . . . . . . . . . . . . . . . . . . 1 1 . 1 Launcher 3 | . . . . . . . . . . . . . . . . . . . . . . . . . . . . . 1 . 1 . . . 1 . . . Special Weapon 3 | . . . . . . . . . . . . . . . . . . 1 . . 2 . . . . . . . . . . . . . . . . . Impact Weapon . | . . . . . . . . . . . . . . . . . . . . . . . . . . . . . . . . . . . . . . . Slashing Weapon . | . . . . . . . . . . . . . . . . . . . . . . . . . . . . . . . . . . . . . . . Piercing Weapon . | . . . . . . . . . . . . . . . . . . . . . . . . . . . . . . . . . . . . . . . Special Melee Weapon . | . . . . . . . . . . . . . . . . . . . . . . . . . . . . . . . . . . . . . . . Unidentified Prototypes 47 | . . . 3 . 2 . . 1 1 . . . . . . 3 . . 1 . 3 . . 3 . 1 . . 9 1 5 3 . 1 8 . . 2 Parts Lost 4 | . . . . . . . . . . . . . . . 1 . . . . . . . . . . . . . 2 . 1 . . . . . . . Power 1 | . . . . . . . . . . . . . . . . . . . . . . . . . . . . . 1 . . . . . . . . . Propulsion 1 | . . . . . . . . . . . . . . . 1 . . . . . . . . . . . . . . . . . . . . . . . Utility 1 | . . . . . . . . . . . . . . . . . . . . . . . . . . . . . . . 1 . . . . . . . Weapon 1 | . . . . . . . . . . . . . . . . . . . . . . . . . . . . . 1 . . . . . . . . . Highest Loss Streak 2 | . . . . . . . . . . . . . . . 1 . . . . . . . . . . . . . 2 . 1 . . . . . . . To Critical Strikes . | . . . . . . . . . . . . . . . . . . . . . . . . . . . . . . . . . . . . . . . Average Backups 2 | . . . 1 1 . 1 . . . 1 2 2 2 2 2 1 2 1 2 2 3 5 5 5 4 4 4 4 2 2 2 2 2 3 2 3 2 1 Power . | . . . . . . . . . . . . . . . . . . . . . . . . . . . . . . . . . . . . . . . Propulsion . | . . . . . . . . . . . . . . . . . . . . . . . . . . . 1 1 . . . . . . . . . . Utility 1 | . . . . 1 . 1 . . . . 1 1 1 1 1 . 1 . . 1 1 2 2 2 1 1 2 2 1 1 1 2 2 2 1 1 1 1 Weapon . | . . . . . . . . . . . . . . . . . . . . . . . . . . . . . . 1 . . . . . . . . Tool/Special . | . . . . . . . . . . . . . . . . . . . . . . . . . . . . . . . . . . . . . . . Unused Backups 14 | . . . 7 . 1 . . . . . . . . . . . . 1 . . 1 . . . . . . . . . . . . . 3 1 . . Power 5 | . . . 3 . . . . . . . . . . . . . . . . . . . . . . . . . . . . . . . 1 1 . . Propulsion 1 | . . . . . 1 . . . . . . . . . . . . . . . . . . . . . . . . . . . . . . . . . Utility 6 | . . . 3 . . . . . . . . . . . . . . . . . 1 . . . . . . . . . . . . . 2 . . . Weapon . | . . . . . . . . . . . . . . . . . . . . . . . . . . . . . . . . . . . . . . . Tool/Special 2 | . . . 1 . . . . . . . . . . . . . . 1 . . . . . . . . . . . . . . . . . . . . Average Slot Usage (%) 73 | . 86 99 76 72 71 68 71 73 73 73 73 73 73 73 69 67 73 73 75 75 68 70 70 70 70 68 66 66 70 73 72 73 75 75 79 76 79 84 Core 2 | . 7 9 9 9 2 . . . . . . . . . . . . . . . . . . . . . . . . 4 4 4 4 4 7 8 8 7 Reactor 2 | . . . . . . . . 1 5 5 5 5 5 5 5 4 5 5 5 5 5 5 5 5 5 4 4 4 3 4 4 4 4 4 . . . . Flight 22 | . 11 24 27 27 24 25 26 26 26 26 26 26 26 26 24 22 26 25 25 25 20 20 20 20 20 17 14 14 20 21 21 20 20 20 23 24 23 23 Device 34 | . 19 18 16 18 28 31 33 36 36 36 36 36 36 36 33 35 36 35 35 35 35 35 35 35 35 36 38 38 36 34 33 34 37 37 37 36 39 34 Energy Gun 1 | . 29 28 5 . . . . . . . . . . . . . . . . . . . . . . . . . . . . . . . . . . . Ballistic Gun 4 | . 12 9 9 9 6 6 5 5 5 5 5 5 5 5 5 3 5 5 4 5 5 5 5 5 5 4 4 4 3 4 4 4 4 4 4 4 4 3 Launcher 1 | . . . . . . . . . . . . . . . . . . . . . . . . . . . . . . . 1 4 4 4 3 4 4 3 Special Weapon 1 | . . . . . . . . . . . . . . . . . . . 4 5 3 5 5 5 5 4 4 4 3 4 2 . . . . . . . Peak Build Rating 259 | 6 14 15 53 54 95 95 107 114 117 118 115 115 115 115 115 124 120 124 125 124 144 144 144 144 144 158 156 156 186 178 184 191 192 198 259 243 250 258 Average Rating 152 | 4 9 14 42 51 75 95 102 108 116 115 115 115 115 115 110 103 119 120 123 124 137 144 143 143 144 149 156 156 169 177 179 185 191 196 229 234 242 254 On Entrance 127 | . 6 14 15 53 51 95 95 107 114 117 115 115 115 115 115 105 119 120 124 124 124 144 144 143 144 144 156 156 156 178 178 181 191 192 196 233 242 247 Avg Prop Armor Cover (%) 1 | . . . . . . . . . . . . . . . . . . . . . . . . . . . . . 1 . 2 . . . . . . . Naked Turns . | . . . . . . . . . . . . . . . . . . . . . . . . . . . . . . . . . . . . . . . Heaviest Build 90 | 8 13 13 22 21 39 35 41 45 45 45 45 45 45 45 45 41 41 42 47 42 48 46 47 48 48 59 59 59 67 67 67 67 67 67 90 90 90 88 Greatest Support 106 | 15 18 22 22 22 39 39 44 46 50 47 47 47 47 47 50 50 50 52 50 50 60 60 58 58 58 64 62 62 77 69 77 69 69 77 106 100 106 106 Greatest Overweight (x) 1 | . . . . . 1 . . . . . . . . . . . . . . . . . . . . . . . 1 . 1 . . . 1 . . . Average Overweight (x) . | . . . . . . . . . . . . . . . . . . . . . . . . . . . . . . . . . . . . . . . Largest Inventory Capacity 6 | 1 2 3 3 3 3 3 3 3 3 4 4 4 4 4 4 4 4 4 4 4 5 5 5 5 5 5 5 5 5 5 5 5 6 6 6 6 6 6 Average Capacity 4 | 1 1 2 3 3 3 3 3 3 3 3 4 4 4 4 4 4 4 4 4 4 4 5 5 5 5 5 5 5 5 5 5 5 5 6 6 6 6 6 Most Carried 6 | . 2 2 3 3 3 3 3 3 3 4 4 4 4 4 4 4 4 4 4 4 5 5 5 5 5 5 5 5 5 5 5 5 6 6 6 6 6 6 Average Carried 3 | . 1 1 1 3 2 2 2 2 2 3 4 4 4 4 4 2 3 3 3 4 4 5 5 5 4 4 5 5 4 5 4 4 4 5 4 4 4 3 Final Capacity 6 | 1 2 3 3 3 3 3 3 3 3 4 4 4 4 4 4 4 4 4 4 4 5 5 5 5 5 5 5 5 5 5 5 5 6 6 6 6 6 6 Final Carried 6 | . 2 2 3 3 3 3 2 3 3 4 4 4 4 4 4 3 4 4 4 4 5 5 5 5 5 5 5 5 5 5 5 4 6 5 5 4 3 3 Class Distribution -------------------- 55% | Scavenger-Scout 36% | Hacker-Scout 6% | Scavenger-Gunner Dominant Class ---------------- Scavenger-Gunner | -10/Materials Scavenger-Gunner | -10/Mines Scavenger-Gunner | -10/Exiles Scavenger-Gunner | -9/Mines Scavenger-Gunner | -8/Materials Scavenger-Scout | -8/Garrison Scavenger-Scout | -7/Factory Scavenger-Scout | -7/Garrison Scavenger-Scout | -7/Factory Scavenger-Scout | -7/Lower Caves Scavenger-Scout | -7/Lower Caves Scavenger-Scout | -7/Data Miner Scavenger-Scout | -6/Proximity Caves Scavenger-Scout | -6/Factory Scavenger-Scout | -6/Waste Scavenger-Scout | -6/Factory Scavenger-Scout | -6/Lower Caves Scavenger-Scout | -6/Lower Caves Scavenger-Scout | -6/Zion Scavenger-Scout | -5/Proximity Caves Scavenger-Scout | -5/Factory Hacker-Scout | -5/Upper Caves Hacker-Scout | -5/Upper Caves Hacker-Scout | -5/Zhirov Hacker-Scout | -4/Proximity Caves Hacker-Scout | -4/Factory Hacker-Scout | -4/Upper Caves Hacker-Scout | -4/Upper Caves Scavenger-Scout | -4/Warlord Scavenger-Scout | -3/Proximity Caves Scavenger-Scout | -3/Research Scavenger-Scout | -3/Testing Scavenger-Scout | -2/Research Scavenger-Scout | -2/Quarantine Hacker-Scout | -2/Protoforge Hacker-Scout | -1/Access Hacker-Scout | -1/Command Scavenger-Scout | -1/Access_0 Resources | -11 -10 -10 -10 -9 -8 -8 -7 -7 -7 -7 -7 -7 -6 -6 -6 -6 -6 -6 -6 -5 -5 -5 -5 -5 -4 -4 -4 -4 -4 -3 -3 -3 -2 -2 -2 -1 -1 -1 ----------- Run | Yrd Mat Min Exi Min Mat Gar Fac Gar Fac Low Low Dat Pro Fac Was Fac Low Low Zio Pro Fac Upp Upp Zhi Pro Fac Upp Upp War Pro Res Tes Res Qua Frg Acc Com Ac0 Matter Collected 93421 | 266 198 22 255 240 1590 1071 4305 1295 5081 409 473 261 924 23 . 6569 585 905 55 261 3729 495 235 . 796 4204 378 354 9182 415 3852 2889 2915 1586 20998 2173 9367 5065 Remotely 61038 | . . . . . . . . . . . . . . . . . . . . . 2680 495 235 . 796 2824 . . 7452 415 3837 2889 2903 1586 19918 2173 8655 4180 Salvage Created 127639 | 79 883 75 70 226 2678 1380 5850 1630 6132 602 340 283 1175 188 . 9703 635 749 . 426 4160 827 462 . 791 6081 616 635 13965 695 5945 3766 3699 1868 24382 3071 20218 3354 Parts 6442 | 3 68 11 2 18 148 93 321 112 423 34 30 19 62 12 . 508 40 55 . 25 205 38 21 . 58 316 25 19 625 38 263 167 146 108 1162 154 880 233 Haulers Intercepted 11 | . . . . . 1 . 1 . . . . . . . . 1 . . . . 2 . . . . 3 . . . . 1 1 . . . 1 . . Recyclers Shooed 8 | . . . . . . . . . . . . . . . . 2 . . . . 3 . . . . 1 . . . . 2 . . . . . . . Parts Field Recycled . | . . . . . . . . . . . . . . . . . . . . . . . . . . . . . . . . . . . . . . . Retrieved Matter . | . . . . . . . . . . . . . . . . . . . . . . . . . . . . . . . . . . . . . . . Parts Self-Destructed 396 | . . . . . . . . . . 28 14 . 62 . . . 38 40 . 25 . 31 21 . 58 . 22 19 . 38 . . . . . . . . Prevented . | . . . . . . . . . . . . . . . . . . . . . . . . . . . . . . . . . . . . . . . Parts Restored 4 | . . . . . . . . . . . . . . . . . . . . . . . . . . . . . . . . . . . 4 . . . Faulty 4 | . . . . . . . . . . . . . . . . . . . . . . . . . . . . . . . . . . . 4 . . . Kills | -11 -10 -10 -10 -9 -8 -8 -7 -7 -7 -7 -7 -7 -6 -6 -6 -6 -6 -6 -6 -5 -5 -5 -5 -5 -4 -4 -4 -4 -4 -3 -3 -3 -2 -2 -2 -1 -1 -1 ------- Run | Yrd Mat Min Exi Min Mat Gar Fac Gar Fac Low Low Dat Pro Fac Was Fac Low Low Zio Pro Fac Upp Upp Zhi Pro Fac Upp Upp War Pro Res Tes Res Qua Frg Acc Com Ac0 Combat Hostiles Destroyed 2612 | . 34 6 4 10 52 35 134 43 147 11 10 4 27 2 . 173 17 23 . 9 60 15 11 . 23 101 9 7 252 15 77 92 54 30 510 45 526 44 Guns 1931 | . 34 6 4 10 52 35 134 43 147 11 10 4 27 2 . 173 17 23 . 9 59 15 11 . 23 99 9 7 252 15 77 32 44 18 285 43 157 44 AOE 681 | . . . . . . . . . . . . . . . . . . . . . 1 . . . . 2 . . . . . 60 10 12 225 2 369 . Classes Destroyed 36 | 2 2 . 1 . 9 3 2 . . 2 1 . . 1 . 2 . . . . . . . . 1 . . . 2 . . 2 3 1 2 . . . Worker 32 | . . . . . 1 . 3 . . . . . . . . 3 . . . . 8 . . . . 9 . . . . 2 . . . 3 . 3 . Builder 19 | . . . . . . . . . . . . . . 1 . 7 . . . . 5 . . . . 1 . . . . 1 . . 2 2 . . . Tunneler 7 | 1 . . . . . . . . 1 . . . . 1 . 2 . . . . 2 . . . . . . . . . . . . . . . . . Hauler 11 | . . . . . 1 . 1 . . . . . . . . 1 . . . . 2 . . . . 3 . . . . 1 1 . . . 1 . . Recycler 10 | 1 . . . . 1 . . . . . . . . . . 1 . . . . 3 . . . . . . . . . 2 . . . . . 2 . Carrier 1 | . . . . . . . . . . . . . . . . . . . . . . . . . . . . . . . . 1 . . . . . . Mechanic 52 | . . . . . 1 . 3 . 5 . . . . . . 7 . . . . . . . . . . . . 2 . . 3 . 1 21 1 8 . Operator 7 | . . . . . 2 . . . 1 . . . . . . . . . . . 2 . . . . . . . . . . . . 2 . . . . Drone 12 | . . . . . . . . . . . . . . . . . . . . . . . . . 2 . . . . 1 . . . . 9 . . . Watcher 38 | . . . . . 2 . 2 . 3 . . . . 1 . 4 . . . . 3 . . . . 4 . . . . 3 3 2 1 4 1 5 . Swarmer 269 | . 3 6 . 10 3 10 14 12 5 3 4 . 12 . . 7 1 6 . . 9 1 1 . 11 19 5 . 26 9 8 . 10 . 5 5 64 . Cutter 37 | . . . . . 3 . . 2 . . . . . . . . . . . . . . . . . 3 . . . . 3 . . . 4 6 16 . Saboteur 70 | . . . . . . . . . . . . . . . . 7 . . . . 4 . . . . . . . 9 . 2 4 . . 22 . 22 . Grunt 890 | . 31 . . . 35 12 47 16 49 4 . . 8 2 . 77 8 9 . 7 18 7 6 . 8 38 1 3 103 2 17 42 10 16 148 15 151 . Brawler 126 | . . . . . . . 9 4 8 1 . . . . . 12 2 1 . . 3 1 2 . . . . 1 18 . 1 7 1 . 21 3 31 . Duelist 129 | . . . . . . . 12 . 11 . . . 1 . . 6 . 2 . 1 3 1 1 . . 2 2 . 5 1 . 10 . 2 31 . 38 . Protector 93 | . . . . . . 1 10 . 12 . . . . . . 5 . . . . 1 . . . . . . . 15 . 1 6 . 1 25 . 16 . Researcher 5 | . . . . . . . . . . . . . . . . . . . . . . . . . . . . . . . . . . 1 4 . . . Sentry 164 | . . . . . 9 6 14 4 24 1 1 . 3 . . 23 1 2 . . 4 2 1 . 1 14 1 . . 1 13 4 11 . 20 2 2 . Demolisher 25 | . . . . . . 1 . . . . . . . . . . . . . . . . . . . . . . 9 . . . 1 . . 2 12 . Specialist 55 | . . . . . . . . . . . . . . . . 4 . . . . 2 . . . . . . . 7 . 2 3 . . 13 . 24 . Hunter 255 | . . . . . 1 2 22 2 25 1 . . 2 . . 13 2 1 . . 8 1 . . . 17 . 2 12 . 10 8 2 2 53 6 63 . Programmer 227 | . . . . . . 3 6 3 12 . . . . . . 13 . . . . 7 . . . . 6 . . 17 . 11 6 2 8 67 1 65 . Heavy 13 | . . . . . 1 . . . 1 . . . . . . 4 . . . . . . . . . 2 . . . . 3 . . . . 1 1 . Behemoth 20 | . . . . . . . . . . 1 1 . 1 . . 1 1 . . 1 . . . . 1 . . 1 5 1 2 . . . 1 2 1 . M Guard 2 | . . . . . . . . . . . . . . . . . . . . . . . . . . . . . . . . . . . . . 2 . Enhanced Grunt 30 | . . . . . . . . . . . . 4 . . . . . . . . . . . . . . . . . . . . . . . . . 26 Enhanced Sentry 3 | . . . . . . . . . . . . . . . . . . . . . . . . . . . . . . . . . . . . . . 3 Enhanced Hunter 8 | . . . . . . . . . . . . . . . . . . . . . . . . . . . . . . . . . . . . . . 8 Hotshot 22 | . . . . . . . . . . . . . . . . . . . . . . . . . . . . . . . . . . . 22 . . . Decapitator 15 | . . . . . . . . . . . . . . . . . . . . . . . . . . . . . . . . . . . 15 . . . Immortal 6 | . . . . . . . . . . . . . . . . . . . . . . . . . . . . . . . . . . . 6 . . . Overlord 1 | . . . . . . . . . . . . . . . . . . . . . . . . . . . . . . . . . . . 1 . . . Combat Programmer 2 | . . . . . . . . . . . . . . . . . . . . . . . . . . . . . . . . . . . . . 2 . Investigator 5 | . . . . . . . . . . . . . . . . . . . . . . . . . . . . . . . . 1 . . 2 . 2 . Striker 41 | . . . . . . . . . . . . . . . . . . . . . . . . . . . . . 10 . . 1 2 . 19 . 9 . Executioner 47 | . . . . . . . . . . . . . . . . . . . . . . . . . . . . . 15 . 3 1 1 . 20 2 5 . Alpha 7 5 | . . . . . . . . . . . . . . . . . . . . . . . . . . . . . . . . . . 1 4 . . . V-Series 3 | . . . . . . . . . . . . . . . . . . . . . . . . . . . . . . . . . . . 3 . . . Tinkerer 1 | . . . . . . . . . . . . . . . . . . . . . . . . . . . . . . . . . . . 1 . . . Thief 2 | . . . . . . . . . . . . . . . . . 2 . . . . . . . . . . . . . . . . . . . . . Master Thief 9 | . . . . . . . . . . . 4 . . . . . . 3 . . . 2 . . . . . . . . . . . . . . . . Assembled 3 | . . . 3 . . . . . . . . . . . . . . . . . . . . . . . . . . . . . . . . . . . Thug 4 | . . . . 1 . . . . . . . . . . . . . . . . . . . . . . . . . . . . 3 . . . . . Butcher 3 | . . . . . . . . . . . . . . . . . . . . . . . . . . . . . . . . . 3 . . . . . Martyr 3 | . . . . . . . . . . . . . . . . . . . . . . . . . . . . . . . . . 3 . . . . . Mutant 3 | . . . . . . . . . . 1 . . . . . . . . . . . . . . . . . . . . . . 2 . . . . . Commander 1 | . . . . . . . . . . . . . . . . . . . . . . . . . . . . . . . . . 1 . . . . . Troll 1 | . . . . . . . . . . . . . . . . . . . . . . . . . . . . . . . . . 1 . . . . . Hydra 1 | . . . . . . . . . . . . . . . . . . . . . . . . . . . . . . . . . 1 . . . . . Borebot 1 | . . . . . . . . . . . . . . . . . . . . . . . . . . . . . . . . . 1 . . . . . Best Kill Streak 229 | 2 6 3 3 4 18 23 26 32 55 9 4 4 14 5 . 75 13 10 . 4 17 6 7 . 11 21 9 6 45 6 27 51 10 19 73 19 229 5 Combat Bots Only 223 | . 6 3 3 4 17 23 25 32 50 9 4 4 14 2 . 68 13 10 . 4 15 6 7 . 11 16 9 6 45 6 21 47 10 18 66 18 223 5 Max Kills in Single Turn 21 | 1 2 2 1 1 2 2 2 2 2 2 2 1 2 2 . 4 2 3 . 1 3 1 2 . 2 3 2 1 4 2 2 8 4 3 9 2 21 2 Gunslinging 1 | . 1 1 . . . . . . . . . . . . . . . . . . . . . . . . . . . . . . . . . . . . Exploded 21 | . . . . . . . . . . . . . . . . . . . . . 1 . . . . 2 . . . . . 7 4 3 9 1 21 . Melee . | . . . . . . . . . . . . . . . . . . . . . . . . . . . . . . . . . . . . . . . Uniques/NPCs Destroyed 15 | . . . 1 . . . . . . . . . . . . 1 . . . . 1 . . . . . . . 1 . 1 . . . 1 . 2 7 8R-AWN (-10/Exiles) BL-1NK (-6/Factory) 6S-H0T (-5/Factory) Fake God Mode (-4/Warlord) CL-0N3 (-3/Research) Superfortress (-2/Protoforge) MAIN.C Shell (-1/Command) MAIN.C (-1/Command) A8 (-1/Access_0) A6 (-1/Access_0) A5 (-1/Access_0) A4 (-1/Access_0) A2 (-1/Access_0) A3 (-1/Access_0) Architect (-1/Access_0) Combat | -11 -10 -10 -10 -9 -8 -8 -7 -7 -7 -7 -7 -7 -6 -6 -6 -6 -6 -6 -6 -5 -5 -5 -5 -5 -4 -4 -4 -4 -4 -3 -3 -3 -2 -2 -2 -1 -1 -1 -------- Run | Yrd Mat Min Exi Min Mat Gar Fac Gar Fac Low Low Dat Pro Fac Was Fac Low Low Zio Pro Fac Upp Upp Zhi Pro Fac Upp Upp War Pro Res Tes Res Qua Frg Acc Com Ac0 Hostile Shots Fired 5109 | . 103 10 11 12 50 38 222 51 345 25 12 6 45 1 1 331 20 36 . 14 244 9 8 . 23 272 8 17 525 24 205 107 82 73 1229 119 518 313 Missed 2443 | . 37 2 2 7 25 11 112 28 174 14 6 2 19 1 . 160 9 17 . 5 116 5 3 . 10 135 4 6 253 9 102 51 28 36 601 51 271 131 Hits 2666 | . 66 8 9 5 25 27 110 23 171 11 6 4 26 . 1 171 11 19 . 9 128 4 5 . 13 137 4 11 272 15 103 56 54 37 628 68 247 182 Melee 25 | . . . . . . . . . . . . . . . 1 . . . . . 1 . . . . . . . . . 2 4 . . 12 1 2 2 Projectile 2641 | . 66 8 9 5 25 27 110 23 171 11 6 4 26 . . 171 11 19 . 9 127 4 5 . 13 137 4 11 272 15 101 52 54 37 616 67 245 180 AOE 40 | . . . . . 2 . . . . . . . . . . . . . . . 2 . . . . 1 . . 8 . 1 . 1 . 11 6 8 . Critical Strikes 192 | . . . 6 . 1 1 3 . 7 1 . . 1 . . 9 . . . 2 14 . 2 . . 7 . . 12 . 6 5 1 2 64 2 26 20 Actively Blocked 59 | . . . . . 1 1 3 . 7 1 . . . . . 9 . . . 2 14 . 2 . . 7 . . . . . 2 1 2 7 . . . Part Disruptions 19 | . . . . . . . . . 2 . . . . . . . . . . . . . . . . . . . 2 . 3 . 1 . 3 . 5 3 Damage Taken 40398 | . 787 69 175 66 460 360 1556 261 1886 114 59 174 316 . 37 2916 231 268 . 200 2715 91 114 . 211 2847 38 124 3189 101 1100 1007 547 484 7761 844 4587 4703 Core 32109 | . 641 57 142 50 380 285 1238 204 1506 89 45 137 253 . 29 2346 186 218 . 161 2183 72 90 . 166 2279 29 97 2516 78 853 816 422 383 6191 659 3667 3641 Absorbed by Shields 10463 | . . . . . . . . 8 254 44 24 16 100 . . . . . . . . . . . . 248 32 87 1997 120 672 398 402 176 3534 473 1349 529 Redirected to Core 27555 | . 450 38 122 50 281 248 1062 192 1215 78 43 137 211 . 29 1999 167 170 . 142 1879 72 90 . 154 2035 29 97 2096 62 813 657 398 344 5505 603 3257 2830 Ignored by Resistances 15260 | . . . . . . . . . . . . . . . . . . . . . . . . . . 125 8 29 2272 136 772 417 541 221 6552 620 2316 1251 Core Remaining (%) 84 | 100 . . . 97 . 98 . . . . . . 100 . . . . . . 100 . . . . 96 . . . . 100 . 53 . . 73 . . 26 Volleys Fired 5677 | 6 72 4 15 14 100 72 282 88 332 31 25 17 59 5 1 412 39 59 94 23 227 33 15 3 47 275 23 22 611 29 242 142 170 87 1068 134 519 280 Largest 4 | 3 4 4 1 1 1 1 1 1 1 1 1 1 1 1 1 1 1 1 1 1 1 1 1 1 1 1 1 1 1 1 1 2 2 2 2 1 2 2 Hottest 300 | 110 150 150 60 60 60 60 60 60 60 60 60 60 60 60 60 60 60 60 250 60 60 60 60 7 60 60 60 60 300 60 60 120 120 120 120 60 120 120 Shots Fired 5984 | 18 242 16 15 14 100 72 282 88 332 31 25 17 60 5 1 413 39 59 94 23 227 33 15 3 47 274 24 22 609 28 242 168 183 97 1131 134 519 282 Gun 5635 | 18 242 16 15 14 100 72 282 88 332 31 25 17 60 5 1 413 39 59 94 23 223 33 15 . 47 274 24 22 607 28 242 139 166 87 955 119 428 280 Cannon 2 | . . . . . . . . . . . . . . . . . . . . . . . . . . . . . 1 . . . . . . 1 . . Launcher 339 | . . . . . . . . . . . . . . . . . . . . . . . . . . . . . . . . 29 17 10 176 14 91 2 Special 8 | . . . . . . . . . . . . . . . . . . . . . 4 . . 3 . . . . 1 . . . . . . . . . Kinetic 5348 | 6 72 4 15 14 100 72 282 88 332 31 25 17 60 5 1 413 39 59 1 23 223 33 15 . 47 274 24 22 606 28 242 139 166 87 955 120 428 280 Thermal 200 | 12 170 12 . . . . . . . . . . . . . . . . 1 . 4 . . . . . . . 1 . . . . . . . . . Explosive 338 | . . . . . . . . . . . . . . . . . . . . . . . . . . . . . . . . 29 17 10 175 14 91 2 Electromagnetic 93 | . . . . . . . . . . . . . . . . . . . 92 . . . . . . . . . . . . . . . 1 . . . Entropic 1 | . . . . . . . . . . . . . . . . . . . . . . . . . . . . . 1 . . . . . . . . . Robot Hit Streak 75 | 4 17 8 40 41 24 21 38 22 31 11 19 13 15 5 . 42 19 20 . 13 39 18 37 12 28 38 19 19 39 20 39 39 72 40 75 38 65 41 Robot Miss Streak 8 | 3 3 1 1 1 6 3 6 5 8 3 6 2 3 2 . 6 4 8 . 3 6 3 1 . 3 4 2 2 5 6 4 3 6 3 8 2 6 5 Penetration Max 1 | . . . . . . . . . . . . . . . . . . . . . . . . . . . . . . . . 1 . . . . . . Secondary Targets 6 | . 4 2 . . . . . . . . . . . . . . . . . . . . . . . . . . . . . . . . . . . . Max Gunslinging Chain 1 | . 1 1 . . . . . . . . . . . . . . . . . . . . . . . . . . . . . . . . . . . . Shots Hit Robots 5037 | 8 165 8 14 14 99 57 262 70 300 30 20 12 59 5 . 368 39 54 . 23 199 33 15 3 46 248 22 22 497 26 218 120 157 83 987 109 393 252 Core Hits 6855 | 3 64 6 11 12 98 52 298 74 331 32 19 20 49 7 . 398 30 46 1 21 184 32 21 . 40 260 19 22 643 28 250 258 189 106 1571 113 1225 322 Critical Kills 2 | . 2 . . . . . . . . . . . . . . . . . . . . . . . . . . . . . . . . . . . . . Critical Parts Destroyed 1 | . 1 . . . . . . . . . . . . . . . . . . . . . . . . . . . . . . . . . . . . . Critical Strikes 9 | . 9 . . . . . . . . . . . . . . . . . . . . . . . . . . . . . . . . . . . . . Burn 6 | . 6 . . . . . . . . . . . . . . . . . . . . . . . . . . . . . . . . . . . . . Destroy 3 | . 3 . . . . . . . . . . . . . . . . . . . . . . . . . . . . . . . . . . . . . Melee Attacks . | . . . . . . . . . . . . . . . . . . . . . . . . . . . . . . . . . . . . . . . Impact . | . . . . . . . . . . . . . . . . . . . . . . . . . . . . . . . . . . . . . . . Slashing . | . . . . . . . . . . . . . . . . . . . . . . . . . . . . . . . . . . . . . . . Piercing . | . . . . . . . . . . . . . . . . . . . . . . . . . . . . . . . . . . . . . . . Sneak Attacks . | . . . . . . . . . . . . . . . . . . . . . . . . . . . . . . . . . . . . . . . Combat Hostiles . | . . . . . . . . . . . . . . . . . . . . . . . . . . . . . . . . . . . . . . . Follow-up Attacks . | . . . . . . . . . . . . . . . . . . . . . . . . . . . . . . . . . . . . . . . Damage Inflicted 637176 | 87 1873 104 1159 701 6795 3910 19395 5101 22556 1845 1511 995 3830 294 . 33895 3230 4161 9 1969 15119 2943 1225 . 3840 20247 1622 2146 54138 1833 19300 25555 16949 9443 165534 13462 146104 24296 Guns 439408 | 87 1873 104 1159 701 6795 3910 18789 5101 22556 1845 1511 995 3830 294 . 33234 3230 4161 9 1969 14806 2943 1225 . 3840 19787 1622 2146 54138 1833 19300 8336 14698 6799 93676 12523 45382 24201 Cannons . | . . . . . . . . . . . . . . . . . . . . . . . . . . . . . . . . . . . . . . . Explosions 197738 | . . . . . . . 606 . . . . . . . . 661 . . . . 283 . . . . 460 . . . . . 17219 2251 2644 71858 939 100722 95 Melee . | . . . . . . . . . . . . . . . . . . . . . . . . . . . . . . . . . . . . . . . Ramming . | . . . . . . . . . . . . . . . . . . . . . . . . . . . . . . . . . . . . . . . Kinetic 437871 | 17 479 40 1159 701 6795 3910 18789 5101 22556 1845 1511 995 3830 294 . 33234 3230 4161 . 1969 14806 2943 1225 . 3840 19787 1622 2146 54138 1833 19300 8336 14698 6799 93676 12523 45382 24201 Thermal 14051 | 70 1394 64 . . . . . . . . . . . . . 573 . . . . 169 . . . . 374 . . . . . 1107 231 . 1909 . 8160 . Explosive 185006 | . . . . . . . 606 . . . . . . . . . . . . . 144 . . . . 86 . . . . . 16080 2020 2644 69949 820 92562 95 Electromagnetic 248 | . . . . . . . . . . . . . . . . 88 . . 9 . . . . . . . . . . . . 32 . . . 119 . . Impact . | . . . . . . . . . . . . . . . . . . . . . . . . . . . . . . . . . . . . . . . Slashing . | . . . . . . . . . . . . . . . . . . . . . . . . . . . . . . . . . . . . . . . Piercing . | . . . . . . . . . . . . . . . . . . . . . . . . . . . . . . . . . . . . . . . Highest Corruption 9 | . . . . . 2 3 1 1 4 4 4 4 4 . 6 9 . . . . 1 1 1 . . 4 4 4 4 4 2 1 . 2 5 . 4 1 Average Corruption 3 | . . . . . 1 2 1 1 2 4 4 4 4 . 6 6 . . . . 1 1 1 . . 1 4 4 2 4 1 1 . 1 2 . 2 1 Corruption Purged 75 | . . . . . . . . . . . . . . . . 9 . . . . . . 1 . . . . . . . 6 1 . 3 34 . 19 2 Corruption Blocked . | . . . . . . . . . . . . . . . . . . . . . . . . . . . . . . . . . . . . . . . Effects 218 | . . . . . 2 6 2 2 21 9 8 2 7 . . 74 . . . . 6 1 2 . . 7 13 8 18 9 1 1 . 1 12 . 6 . Message Errors 58 | . . . . . 1 . 1 . 5 3 1 1 1 . . 23 . . . . 3 . 1 . . . 4 3 4 3 . . . . 2 . 2 . Matter Fused 39 | . . . . . . 1 . . 4 1 2 1 3 . . 13 . . . . . . . . . 2 3 . 2 1 1 1 . . 2 . 2 . Heat Flow Errors 26 | . . . . . . 2 . . . 2 1 . . . . 9 . . . . 1 1 1 . . 2 1 1 1 1 . . . 1 2 . . . Energy Discharges 30 | . . . . . . 1 . 1 2 . 2 . 1 . . 11 . . . . 1 . . . . 2 . 4 2 1 . . . . 1 . 1 . Parts Rejected 2 | . . . . . . . . . . . . . . . . 1 . . . . 1 . . . . . . . . . . . . . . . . . Parts Fused 1 | . . . . . . . . . . . . . . . . 1 . . . . . . . . . . . . . . . . . . . . . . Data Loss (minor) 38 | . . . . . . 1 1 1 6 2 2 . 1 . . 11 . . . . . . . . . . 3 . 5 2 . . . . 3 . . . Data Loss (major) 6 | . . . . . . 1 . . . 1 . . . . . 3 . . . . . . . . . . 1 . . . . . . . . . . . Misfires 6 | . . . . . . . . . 2 . . . 1 . . 1 . . . . . . . . . . 1 . 1 . . . . . . . . . Alerts 3 | . . . . . 1 . . . . . . . . . . 1 . . . . . . . . . . . . . . . . . . 1 . . . Weapon Failures 9 | . . . . . . . . . 2 . . . . . . . . . . . . . . . . 1 . . 3 1 . . . . 1 . 1 . Overload Shots . | . . . . . . . . . . . . . . . . . . . . . . . . . . . . . . . . . . . . . . . Overflow Damage 7367 | . . . . . . . 6 . . . . . . . . 220 . . . . 30 . . . . . . . . . . 660 7 75 2728 5 3636 . Projectiles . | . . . . . . . . . . . . . . . . . . . . . . . . . . . . . . . . . . . . . . . Explosions 7367 | . . . . . . . 6 . . . . . . . . 220 . . . . 30 . . . . . . . . . . 660 7 75 2728 5 3636 . Melee . | . . . . . . . . . . . . . . . . . . . . . . . . . . . . . . . . . . . . . . . Knockbacks . | . . . . . . . . . . . . . . . . . . . . . . . . . . . . . . . . . . . . . . . Impact . | . . . . . . . . . . . . . . . . . . . . . . . . . . . . . . . . . . . . . . . Kinetic . | . . . . . . . . . . . . . . . . . . . . . . . . . . . . . . . . . . . . . . . Secondary . | . . . . . . . . . . . . . . . . . . . . . . . . . . . . . . . . . . . . . . . Self-Inflicted Damage 1287 | . . . . . . . . . 114 . . . . . . . . . . . 62 . . . . 48 . . 208 . . . 88 . 233 7 385 142 Shots 22 | . . . . . . . . . 1 . . . . . . . . . . . 2 . . . . 1 . . 10 . . . 1 . 2 1 3 1 Rammed . | . . . . . . . . . . . . . . . . . . . . . . . . . . . . . . . . . . . . . . . Targets Rammed . | . . . . . . . . . . . . . . . . . . . . . . . . . . . . . . . . . . . . . . . Kicked . | . . . . . . . . . . . . . . . . . . . . . . . . . . . . . . . . . . . . . . . Crushed . | . . . . . . . . . . . . . . . . . . . . . . . . . . . . . . . . . . . . . . . Highest Temperature 355 | . 17 . . . 145 164 61 59 75 154 210 53 131 48 3 280 131 96 118 108 336 60 107 . 45 212 42 65 283 92 89 135 132 144 355 41 41 9 Average Temperature 45 | . 7 . . . 59 71 28 24 32 55 62 36 49 48 3 91 57 40 58 45 55 28 40 . 23 32 26 32 38 45 35 44 51 28 36 28 27 3 Received Heat Transfer 5237 | . 369 . . . 162 99 261 45 301 13 3 . 65 . . 714 75 48 . 57 213 27 36 . 30 339 6 23 305 6 49 16 45 15 1890 2 21 2 Siege Activations . | . . . . . . . . . . . . . . . . . . . . . . . . . . . . . . . . . . . . . . . Martial Activations . | . . . . . . . . . . . . . . . . . . . . . . . . . . . . . . . . . . . . . . . Shielding Activations . | . . . . . . . . . . . . . . . . . . . . . . . . . . . . . . . . . . . . . . . Robots Disrupted 14 | . . . . . . . . . . . . . . . . . . . . . . . . . . . . . . . . 5 . . 5 . 4 . Combat Hostiles 13 | . . . . . . . . . . . . . . . . . . . . . . . . . . . . . . . . 4 . . 5 . 4 . Robots Corrupted . | . . . . . . . . . . . . . . . . . . . . . . . . . . . . . . . . . . . . . . . Combat Hostiles . | . . . . . . . . . . . . . . . . . . . . . . . . . . . . . . . . . . . . . . . Parts Fried . | . . . . . . . . . . . . . . . . . . . . . . . . . . . . . . . . . . . . . . . Impact Corruptions . | . . . . . . . . . . . . . . . . . . . . . . . . . . . . . . . . . . . . . . . Robots Melted . | . . . . . . . . . . . . . . . . . . . . . . . . . . . . . . . . . . . . . . . Combat Hostiles . | . . . . . . . . . . . . . . . . . . . . . . . . . . . . . . . . . . . . . . . Parts Melted 15 | 1 11 . . . . . . . . . . . . . . . . . . . . . . . . . . . 1 . . . . . . 2 . . Heat Transferred 14221 | 186 4089 161 . . . . . . . . . . . . . 350 . . . . 60 . . . . 250 . . . . . 750 200 . 1575 . 6600 . Parts Sabotaged . | . . . . . . . . . . . . . . . . . . . . . . . . . . . . . . . . . . . . . . . Parts Stolen . | . . . . . . . . . . . . . . . . . . . . . . . . . . . . . . . . . . . . . . . Parts Stripped . | . . . . . . . . . . . . . . . . . . . . . . . . . . . . . . . . . . . . . . . Power Chain Reactions 47 | . . . . . . . . . . . . . . . . 2 . . . . . . . . . . . . . . . 3 3 1 15 2 21 . Alert | -11 -10 -10 -10 -9 -8 -8 -7 -7 -7 -7 -7 -7 -6 -6 -6 -6 -6 -6 -6 -5 -5 -5 -5 -5 -4 -4 -4 -4 -4 -3 -3 -3 -2 -2 -2 -1 -1 -1 ------- Run | Yrd Mat Min Exi Min Mat Gar Fac Gar Fac Low Low Dat Pro Fac Was Fac Low Low Zio Pro Fac Upp Upp Zhi Pro Fac Upp Upp War Pro Res Tes Res Qua Frg Acc Com Ac0 Maximum Alert Level 5 | . 3 1 . 1 5 5 5 5 5 . . . . 2 . 5 . . . . 5 . . . . 5 . . . . 5 5 5 5 5 5 5 . Low Security (%) 11 | 100 25 . . 99 17 . . . . . . . . . 100 44 . . . . 7 . . . . . . . . . 8 . . . . . . . Level 1 4 | . 9 100 . . 7 . . . . . . . . 72 . 2 . . . . 7 . . . . 9 . . . . 20 . . . . . . . Level 2 6 | . 42 . . . 9 . . . . . . . . 27 . 4 . . . . 18 . . . . 8 . . . . 15 . . . . . . . Level 3 4 | . 22 . . . 31 4 . . . . . . . . . 2 . . . . 15 . . . . 2 . . . . 15 . . . . . . . Level 4 5 | . . . . . 24 31 11 . . . . . . . . 5 . . . . 7 . . . . 11 . . . . 8 27 . . . . . . Level 5 29 | . . . . . 9 64 16 100 3 . . . . . . 19 . . . . 18 . . . . 37 . . . . 6 5 8 100 58 14 22 . High Security 38 | . . . . . . . 71 . 96 . . . . . . 21 . . . . 25 . . . . 29 . . . . 24 67 91 . 41 85 77 . Max Security . | . . . . . . . . . . . . . . . . . . . . . . . . . . . . . . . . . . . . . . . Sterilizations 4 | . . . . . 1 . 1 . 1 . . . . . . 1 . . . . . . . . . . . . . . . . . . . . . . Peak Influence 21773 | 10 766 383 . 197 1648 2290 4787 4805 6165 . . . . 424 164 5637 . . . . 3353 . . . . 4337 . . . . 2551 3995 3556 3208 15187 10788 21773 . Initial 9112 | . . 286 . . 57 1071 1201 3350 2522 . . . . 270 147 100 . . . . . . . . . 215 . . . . 104 1434 2247 2000 1793 9112 6904 . Average 4003 | . 429 319 . 118 864 1738 2813 4208 4150 . . . . 349 151 1368 . . . . 1486 . . . . 2323 . . . . 1017 2408 2756 2428 7844 10068 14513 . Influence Increases 77787 | 10 1130 157 . 257 1917 1219 3716 1455 3663 265 140 . 590 191 17 5801 330 483 . 211 3901 285 239 . 503 4548 190 191 5087 315 2911 2661 1329 1403 14050 1696 15118 1808 Destroy 0b10 Robot/C 48660 | . 680 120 . 200 1040 680 2480 860 2700 200 120 . 540 40 . 3340 300 400 . 180 1300 260 220 . 420 1920 180 140 4760 280 1480 1760 800 560 9640 900 10160 . Destroy 0b10 Robot/NC 1390 | 10 . . . . 40 5 95 5 110 25 . . . 15 . 150 . . . . 65 5 5 . 10 55 10 10 85 5 50 65 10 35 330 15 180 . Destroy Leader 5460 | . 150 20 . 30 266 20 416 40 436 40 20 . 50 12 . 630 30 40 . 30 226 20 10 . 50 368 . 30 . 30 278 208 144 82 1078 144 562 . Allied During Kill 185 | . . 2 . . . . . . . . . . . . . . . 43 . 1 9 . 4 . 23 . . 11 92 . . . . . . . . . Successful Hack 162 | . . . . . 7 28 38 . 18 . . . . 21 . 22 . . . . . . . . . . . . . . 21 . . 7 . . . . Select Force Hacks 350 | . 210 . . . 140 . . . . . . . . . . . . . . . . . . . . . . . . . . . . . . . . . Disable Machine 2820 | . . . . 15 90 30 120 15 75 . . . . . . 375 . . . . 630 . . . . 390 . . . . 30 150 45 120 420 60 165 90 Anti-Garrison Action 750 | . . . . . . 350 . 400 . . . . . . . . . . . . . . . . . . . . . . . . . . . . . . Destroy Structure 8275 | . . . . 12 104 76 132 60 99 . . . . 3 2 399 . . . . 626 . . . . 700 . . . . 82 318 300 369 522 462 2321 1688 Partial Spotted 495 | . 45 . . . 30 30 45 15 . . . . . . 15 15 . . . . 60 . . . . 90 . . . . . . 15 15 15 15 60 30 Lose Combat Pursuer 3540 | . 45 15 . . . . 90 60 225 . . . . . . 270 . . . . 285 . . . . 225 . . 150 . 270 60 15 15 645 . 1170 . Active Sensor Use 5700 | . . . . . 200 . 300 . . . . . . 100 . 600 . . . . 700 . . . . 800 . . . . 700 100 . 200 1400 100 500 . Influence Decreases 75979 | 10 394 550 343 110 416 577 1219 1437 2303 2480 901 3189 160 200 294 308 2227 957 3266 211 548 1401 616 1860 160 554 1828 711 2723 4703 515 1217 1768 1770 2052 6095 3914 21992 Entered New Map 69348 | . . 450 343 . 90 577 1089 1437 2283 2282 751 3189 . 160 274 44 2087 711 3266 . . 1241 426 1860 . 128 1606 513 2179 4543 51 1117 1748 1556 1396 6075 3884 21992 Time Decay 6261 | 10 394 100 . 110 326 . 130 . 20 198 150 . 160 40 10 264 140 246 . 211 428 160 190 . 160 386 222 198 484 160 334 100 20 214 656 20 20 . Search Patrol Dispatched 100 | . . . . . . . . . . . . . . . . . . . . . . . . . . . . . . . 100 . . . . . . . Lost Part 40 | . . . . . . . . . . . . . . . 10 . . . . . . . . . . . . . 20 . 10 . . . . . . . Lost Ally 230 | . . . . . . . . . . . . . . . . . . . . . 120 . . . . 40 . . 40 . 20 . . . . . 10 . Squads Dispatched 728 | . 12 . . . 14 . 35 . 42 . . . . 3 . 45 . . . . 34 . . . . 46 . . . . 29 17 . 10 99 14 328 . Investigation 380 | . 11 . . . 8 . 4 . . . . . . 2 . 6 . . . . 7 . . . . 10 . . . . 9 1 . 3 14 1 304 . Extermination 27 | . . . . . . . 1 . . . . . . 1 . 5 . . . . 3 . . . . 3 . . . . 4 1 . 2 6 . 1 . Reinforcement 38 | . 1 . . . 3 . 2 . 1 . . . . . . 6 . . . . 4 . . . . 7 . . . . 5 1 . 2 3 2 1 . Assault 237 | . . . . . . . 22 . 32 . . . . . . 19 . . . . 17 . . . . 17 . . . . 8 14 . 3 75 8 22 . Garrison 46 | . . . . . 3 . 6 . 9 . . . . . . 9 . . . . 3 . . . . 9 . . . . 3 . . . 1 3 . . Intercept . | . . . . . . . . . . . . . . . . . . . . . . . . . . . . . . . . . . . . . . . Searches Triggered 1 | . . . . . . . . . . . . . . . . . . . . . . . . . . . . . . . 1 . . . . . . . Unchained Authorized 8 | . . . . . . . . . . . . . . . . 2 . . . . 2 . . . . 1 . . . . 1 1 . 1 . . . . Construction Impeded 5 | . . . . . . . . . . . . . . . . 2 . . . . 2 . . . . 1 . . . . . . . . . . . . Haulers Reinforced 3 | . . . . . . . . . . . . . . . . . . . . . . . . . . 2 . . . . . 1 . . . . . . Active Scanning Responses 59 | . . . . . 2 1 3 1 . . . . . 1 . 6 . . . . 7 . . . . 8 . . . . 7 1 . 2 14 1 5 . Cargo Convoy Interrupts 3 | . . . . . . . . . . . . . . . . 1 . . . . 1 . . . . . . . . . 1 . . . . . . . Stealth | -11 -10 -10 -10 -9 -8 -8 -7 -7 -7 -7 -7 -7 -6 -6 -6 -6 -6 -6 -6 -5 -5 -5 -5 -5 -4 -4 -4 -4 -4 -3 -3 -3 -2 -2 -2 -1 -1 -1 --------- Run | Yrd Mat Min Exi Min Mat Gar Fac Gar Fac Low Low Dat Pro Fac Was Fac Low Low Zio Pro Fac Upp Upp Zhi Pro Fac Upp Upp War Pro Res Tes Res Qua Frg Acc Com Ac0 Distress Signals 66 | . 3 . . . 3 . 4 . 2 . . . . 1 . 5 . . . . 3 . . . . 9 . . 1 . 7 . 11 . 4 . 13 . Communications Jammed . | . . . . . . . . . . . . . . . . . . . . . . . . . . . . . . . . . . . . . . . Distress Signals . | . . . . . . . . . . . . . . . . . . . . . . . . . . . . . . . . . . . . . . . Times Spotted 2808 | . 46 7 5 13 56 30 169 38 183 11 6 4 23 2 6 208 16 24 . 9 120 16 10 . 21 138 9 7 204 13 98 82 70 42 522 49 486 65 Peak Tracking Total 68 | . 9 3 9 4 9 6 19 8 12 4 4 3 10 1 6 14 9 7 . 4 31 4 7 . 5 34 9 3 17 5 10 22 15 6 29 11 68 4 Tactical Retreats 90 | . 2 1 1 . . . 3 3 4 . . . . . . 5 . . . . 7 . . . . 12 . . 6 . 8 2 1 2 17 . 16 . Traps | -11 -10 -10 -10 -9 -8 -8 -7 -7 -7 -7 -7 -7 -6 -6 -6 -6 -6 -6 -6 -5 -5 -5 -5 -5 -4 -4 -4 -4 -4 -3 -3 -3 -2 -2 -2 -1 -1 -1 ------- Run | Yrd Mat Min Exi Min Mat Gar Fac Gar Fac Low Low Dat Pro Fac Was Fac Low Low Zio Pro Fac Upp Upp Zhi Pro Fac Upp Upp War Pro Res Tes Res Qua Frg Acc Com Ac0 Traps Triggered 50 | . 2 . . . 3 1 1 10 4 . . . . 1 . 3 . . . . 1 . . . . 4 . . 1 . . 3 . . 16 . . . Indirectly . | . . . . . . . . . . . . . . . . . . . . . . . . . . . . . . . . . . . . . . . Trap Hack Attempts . | . . . . . . . . . . . . . . . . . . . . . . . . . . . . . . . . . . . . . . . Triggered . | . . . . . . . . . . . . . . . . . . . . . . . . . . . . . . . . . . . . . . . Disarmed . | . . . . . . . . . . . . . . . . . . . . . . . . . . . . . . . . . . . . . . . Reprogrammed . | . . . . . . . . . . . . . . . . . . . . . . . . . . . . . . . . . . . . . . . Reused . | . . . . . . . . . . . . . . . . . . . . . . . . . . . . . . . . . . . . . . . Traps Extracted . | . . . . . . . . . . . . . . . . . . . . . . . . . . . . . . . . . . . . . . . Installed . | . . . . . . . . . . . . . . . . . . . . . . . . . . . . . . . . . . . . . . . Triggered . | . . . . . . . . . . . . . . . . . . . . . . . . . . . . . . . . . . . . . . . Machines | -11 -10 -10 -10 -9 -8 -8 -7 -7 -7 -7 -7 -7 -6 -6 -6 -6 -6 -6 -6 -5 -5 -5 -5 -5 -4 -4 -4 -4 -4 -3 -3 -3 -2 -2 -2 -1 -1 -1 ---------- Run | Yrd Mat Min Exi Min Mat Gar Fac Gar Fac Low Low Dat Pro Fac Was Fac Low Low Zio Pro Fac Upp Upp Zhi Pro Fac Upp Upp War Pro Res Tes Res Qua Frg Acc Com Ac0 Machines Disabled 243 | . . . 3 2 6 9 8 9 5 2 . . 3 . . 27 2 2 . . 42 1 1 . . 28 1 . 5 2 2 12 3 11 34 4 11 8 Max in Single Turn 14 | . . . 1 1 1 2 3 2 1 1 . . 1 . . 14 1 1 . . 13 1 1 . . 4 1 . 1 1 1 2 1 2 2 1 1 1 Garrison Access 2 | . . . . . . . . . 1 . . . . . . . . . . . . . . . . . . . . . . . . . 1 . . . Garrison Relay 13 | . . . . . . 5 . 8 . . . . . . . . . . . . . . . . . . . . . . . . . . . . . . Phase Generator 1 | . . . . . . 1 . . . . . . . . . . . . . . . . . . . . . . . . . . . . . . . . Energy Cycler 1 | . . . . . . . . . . . . . . . . . . . . . . . . . . . . . . . . . . . . 1 . . Machines Repaired . | . . . . . . . . . . . . . . . . . . . . . . . . . . . . . . . . . . . . . . . Machines Dismantled . | . . . . . . . . . . . . . . . . . . . . . . . . . . . . . . . . . . . . . . . Machines Sabotaged 4 | . 3 . . . 1 . . . . . . . . . . . . . . . . . . . . . . . . . . . . . . . . . Overloaded Fab Kills . | . . . . . . . . . . . . . . . . . . . . . . . . . . . . . . . . . . . . . . . Hacking | -11 -10 -10 -10 -9 -8 -8 -7 -7 -7 -7 -7 -7 -6 -6 -6 -6 -6 -6 -6 -5 -5 -5 -5 -5 -4 -4 -4 -4 -4 -3 -3 -3 -2 -2 -2 -1 -1 -1 --------- Run | Yrd Mat Min Exi Min Mat Gar Fac Gar Fac Low Low Dat Pro Fac Was Fac Low Low Zio Pro Fac Upp Upp Zhi Pro Fac Upp Upp War Pro Res Tes Res Qua Frg Acc Com Ac0 Machines Accessed 74 | . 10 . . 1 6 3 5 2 4 2 . 2 1 3 . 7 1 1 1 . 4 1 1 4 . 2 . 1 1 . 3 . . 3 2 . 2 1 Terminals 38 | . 7 . . . 2 3 3 2 3 1 . . 1 2 . 3 . . . . 2 . . . . . . 1 . . 2 . . 3 1 . 2 . Fabricators 5 | . . . . . . . . . . . . . . 1 . 1 . . . . 1 . . . . 1 . . . . 1 . . . . . . . Repair Stations 1 | . 1 . . . . . . . . . . . . . . . . . . . . . . . . . . . . . . . . . . . . . Recycling Units 8 | . 2 . . . 1 . 1 . . . . . . . . 2 . . . . 1 . . . . 1 . . . . . . . . . . . . Scanalyzers 2 | . . . . . 2 . . . . . . . . . . . . . . . . . . . . . . . . . . . . . . . . . Garrison Access 5 | . . . . . 1 . 1 . 1 . . . . . . 1 . . . . . . . . . . . . . . . . . . 1 . . . Total Hacks 194 | . 18 . . 1 9 7 18 3 9 2 . 18 4 6 . 14 1 1 4 . 5 1 1 16 . 13 . 1 1 . 9 . . 7 7 . 2 16 Successful 138 | . 10 . . 1 7 2 8 2 4 2 . 18 4 4 . 8 1 1 4 . 3 1 1 16 . 9 . 1 1 . 2 . . 4 6 . 2 16 Failed 56 | . 8 . . . 2 5 10 1 5 . . . . 2 . 6 . . . . 2 . . . . 4 . . . . 7 . . 3 1 . . . Catastrophic 9 | . 2 . . . . 1 2 . 1 . . . . . . 1 . . . . . . . . . . . . . . 2 . . . . . . . Database Lockouts . | . . . . . . . . . . . . . . . . . . . . . . . . . . . . . . . . . . . . . . . Manual 70 | . 17 . 1 . 7 . 10 . 5 . . . . 3 . 8 . . . . 4 . . . . 2 . . 1 . 8 . . 3 . . 1 . Terminals 88 | . 14 . . . 5 7 12 3 8 1 . . 4 5 . 4 . . . . 3 . . . . . . 1 . . 7 . . 7 5 . 2 . Fabricators 10 | . . . . . . . . . . . . . . 1 . 4 . . . . 1 . . . . 2 . . . . 2 . . . . . . . Repair Stations 1 | . 1 . . . . . . . . . . . . . . . . . . . . . . . . . . . . . . . . . . . . . Recycling Units 24 | . 3 . . . 1 . 5 . . . . . . . . 3 . . . . 1 . . . . 11 . . . . . . . . . . . . Scanalyzers 2 | . . . . . 2 . . . . . . . . . . . . . . . . . . . . . . . . . . . . . . . . . Garrison Access 8 | . . . . . 1 . 1 . 1 . . . . . . 3 . . . . . . . . . . . . . . . . . . 2 . . . Terminal Hacks 89 | . 1 . . 1 1 2 2 2 2 2 . 18 4 1 . 1 1 1 4 . . 1 1 16 . . . 1 1 . 2 . . 2 5 . 1 16 Record 33 | . . . . . . . . . . 1 . . 4 . . 1 . . . . . . . 4 . . . 1 . . 1 . . . 5 . . 16 Part Schematic 18 | . . . . . . . . . . . . 10 . . . . . . 4 . . . . 4 . . . . . . . . . . . . . . Robot Schematic 5 | . . . . . . . . . . . . 5 . . . . . . . . . . . . . . . . . . . . . . . . . . Robot Analysis 5 | . 1 . . . . . . . . . . . . . . . . . . . . . . 4 . . . . . . . . . . . . . . Prototype ID Bank 8 | . . . . . . . . . . . . 3 . 1 . . . . . . . . . 4 . . . . . . . . . . . . . . Open Door 9 | . . . . 1 . . . . . 1 . . . . . . 1 1 . . . 1 1 . . . . . 1 . . . . 1 . . 1 . Branch Access Points 3 | . . . . . 1 . 1 . . . . . . . . . . . . . . . . . . . . . . . 1 . . . . . . . Emergency Access Points 2 | . . . . . . 1 . 1 . . . . . . . . . . . . . . . . . . . . . . . . . . . . . . Machine Index 1 | . . . . . . . . . . . . . . . . . . . . . . . . . . . . . . . . . . 1 . . . . Terminal Index 1 | . . . . . . . . . 1 . . . . . . . . . . . . . . . . . . . . . . . . . . . . . Garrison Index 1 | . . . . . . . . . 1 . . . . . . . . . . . . . . . . . . . . . . . . . . . . . Unreport Threat 1 | . . . . . . . 1 . . . . . . . . . . . . . . . . . . . . . . . . . . . . . . . Garrison Registry 1 | . . . . . . 1 . . . . . . . . . . . . . . . . . . . . . . . . . . . . . . . . Patrol Navigation 1 | . . . . . . . . 1 . . . . . . . . . . . . . . . . . . . . . . . . . . . . . . Fabricator Hacks . | . . . . . . . . . . . . . . . . . . . . . . . . . . . . . . . . . . . . . . . Repair Station Hacks . | . . . . . . . . . . . . . . . . . . . . . . . . . . . . . . . . . . . . . . . Recycling Unit Hacks 13 | . . . . . . . 2 . . . . . . . . 1 . . . . 1 . . . . 9 . . . . . . . . . . . . Retrieve Matter 10 | . . . . . . . . . . . . . . . . 1 . . . . . . . . . 9 . . . . . . . . . . . . Retrieve Components 3 | . . . . . . . 2 . . . . . . . . . . . . . 1 . . . . . . . . . . . . . . . . . Scanalyzer . | . . . . . . . . . . . . . . . . . . . . . . . . . . . . . . . . . . . . . . . Garrison Access Hacks 5 | . . . . . 1 . 1 . 1 . . . . . . 1 . . . . . . . . . . . . . . . . . . 1 . . . Unlock Access 4 | . . . . . 1 . 1 . 1 . . . . . . 1 . . . . . . . . . . . . . . . . . . . . . . Seal Access 1 | . . . . . . . . . . . . . . . . . . . . . . . . . . . . . . . . . . . 1 . . . Unauthorized Hacks 30 | . 9 . . . 5 . 2 . 1 . . . . 3 . 5 . . . . 2 . . . . . . . . . . . . 2 . . 1 . Terminals 20 | . 6 . . . 2 . 2 . 1 . . . . 2 . 3 . . . . 1 . . . . . . . . . . . . 2 . . 1 . Assimilate 1 | . . . . . . . . . . . . . . . . . . . . . . . . . . . . . . . . . . . . . 1 . Botnet 11 | . . . . . . . 2 . 1 . . . . 2 . 3 . . . . 1 . . . . . . . . . . . . 2 . . . . Sabotage 8 | . 6 . . . 2 . . . . . . . . . . . . . . . . . . . . . . . . . . . . . . . . . Fabricators 3 | . . . . . . . . . . . . . . 1 . 1 . . . . 1 . . . . . . . . . . . . . . . . . Haulers 3 | . . . . . . . . . . . . . . 1 . 1 . . . . 1 . . . . . . . . . . . . . . . . . Repair Stations 1 | . 1 . . . . . . . . . . . . . . . . . . . . . . . . . . . . . . . . . . . . . Patch 1 | . 1 . . . . . . . . . . . . . . . . . . . . . . . . . . . . . . . . . . . . . Recycling Units 4 | . 2 . . . 1 . . . . . . . . . . 1 . . . . . . . . . . . . . . . . . . . . . . Mask 1 | . . . . . . . . . . . . . . . . 1 . . . . . . . . . . . . . . . . . . . . . . Tunnel 3 | . 2 . . . 1 . . . . . . . . . . . . . . . . . . . . . . . . . . . . . . . . . Scanalyzers 2 | . . . . . 2 . . . . . . . . . . . . . . . . . . . . . . . . . . . . . . . . . Extract 2 | . . . . . 2 . . . . . . . . . . . . . . . . . . . . . . . . . . . . . . . . . Garrison Access . | . . . . . . . . . . . . . . . . . . . . . . . . . . . . . . . . . . . . . . . Data Cores Recovered 3 | . . . . . 1 . . . . . . . . . . . . . . . . . . . . . . . . . . . . 2 . . . . Used 1 | . . . . . . . . . . . . . . . . . . . . . . . . . . . . . . . . . . 1 . . . . Hacking Detections 31 | . 3 . . . 1 3 4 1 2 . . . . 3 . 3 . . . . 1 . . . . 2 . 1 . . 3 . . 1 2 . 1 . Full Trace Events 8 | . 1 . . . . 1 1 . . . . . . 1 . . . . . . . . . . . 1 . . . . 2 . . 1 . . . . Feedback Events . | . . . . . . . . . . . . . . . . . . . . . . . . . . . . . . . . . . . . . . . Feedback Blocked . | . . . . . . . . . . . . . . . . . . . . . . . . . . . . . . . . . . . . . . . Robot Schematics Acquired 55 | . . . . . . . . . . . . 5 . . . . . . . . . . . . . . . . . . 50 . . . . . . . Robots Built . | . . . . . . . . . . . . . . . . . . . . . . . . . . . . . . . . . . . . . . . Authchips . | . . . . . . . . . . . . . . . . . . . . . . . . . . . . . . . . . . . . . . . Time . | . . . . . . . . . . . . . . . . . . . . . . . . . . . . . . . . . . . . . . . Total Robot Build Rating . | . . . . . . . . . . . . . . . . . . . . . . . . . . . . . . . . . . . . . . . Part Schematics Acquired 34 | . . . . . 6 . . . . . . 10 . . . . . . 4 . . . . 4 . . . . . . . . . 1 9 . . . Parts Built . | . . . . . . . . . . . . . . . . . . . . . . . . . . . . . . . . . . . . . . . Authchips . | . . . . . . . . . . . . . . . . . . . . . . . . . . . . . . . . . . . . . . . Time . | . . . . . . . . . . . . . . . . . . . . . . . . . . . . . . . . . . . . . . . Total Part Build Rating . | . . . . . . . . . . . . . . . . . . . . . . . . . . . . . . . . . . . . . . . Part Studies Acquired . | . . . . . . . . . . . . . . . . . . . . . . . . . . . . . . . . . . . . . . . Parts Repaired . | . . . . . . . . . . . . . . . . . . . . . . . . . . . . . . . . . . . . . . . Time . | . . . . . . . . . . . . . . . . . . . . . . . . . . . . . . . . . . . . . . . Parts Recycled . | . . . . . . . . . . . . . . . . . . . . . . . . . . . . . . . . . . . . . . . Recycled Matter . | . . . . . . . . . . . . . . . . . . . . . . . . . . . . . . . . . . . . . . . Retrieved Matter . | . . . . . . . . . . . . . . . . . . . . . . . . . . . . . . . . . . . . . . . Retrieved Components 3 | . . . . . . . . . . . . . . . . . . . . . 3 . . . . . . . . . . . . . . . . . Parts Scanalyzed . | . . . . . . . . . . . . . . . . . . . . . . . . . . . . . . . . . . . . . . . Part Schematics Acquired . | . . . . . . . . . . . . . . . . . . . . . . . . . . . . . . . . . . . . . . . Parts Damaged . | . . . . . . . . . . . . . . . . . . . . . . . . . . . . . . . . . . . . . . . Bothacking | -11 -10 -10 -10 -9 -8 -8 -7 -7 -7 -7 -7 -7 -6 -6 -6 -6 -6 -6 -6 -5 -5 -5 -5 -5 -4 -4 -4 -4 -4 -3 -3 -3 -2 -2 -2 -1 -1 -1 ------------ Run | Yrd Mat Min Exi Min Mat Gar Fac Gar Fac Low Low Dat Pro Fac Was Fac Low Low Zio Pro Fac Upp Upp Zhi Pro Fac Upp Upp War Pro Res Tes Res Qua Frg Acc Com Ac0 Used RIF Installer . | . . . . . . . . . . . . . . . . . . . . . . . . . . . . . . . . . . . . . . . Robots Hacked 3 | . . . . . . . . . . . . . . . . . . . . . . . . 3 . . . . . . . . . . . . . . Non-combat . | . . . . . . . . . . . . . . . . . . . . . . . . . . . . . . . . . . . . . . . Combat 3 | . . . . . . . . . . . . . . . . . . . . . . . . 3 . . . . . . . . . . . . . . Robot Hacks Applied 3 | . . . . . . . . . . . . . . . . . . . . . . . . 3 . . . . . . . . . . . . . . parse_system 3 | . . . . . . . . . . . . . . . . . . . . . . . . 3 . . . . . . . . . . . . . . Relay Couplers Released 23 | . . . . . . 9 . 14 . . . . . . . . . . . . . . . . . . . . . . . . . . . . . . Machine Destruction 23 | . . . . . . 9 . 14 . . . . . . . . . . . . . . . . . . . . . . . . . . . . . . Fabnet Peak Effective % . | . . . . . . . . . . . . . . . . . . . . . . . . . . . . . . . . . . . . . . . Robots Rewired 9 | . . . . . . . . . . 2 . . . . . . 2 . . . . . 2 . . . 2 . . 1 . . . . . . . . Allies Hacked 1 | . . . . . . . . . . . . . . . . . . . . . . . . . . . . . . . . . . . . . 1 . Hacks Repelled . | . . . . . . . . . . . . . . . . . . . . . . . . . . . . . . . . . . . . . . . Allies | -11 -10 -10 -10 -9 -8 -8 -7 -7 -7 -7 -7 -7 -6 -6 -6 -6 -6 -6 -6 -5 -5 -5 -5 -5 -4 -4 -4 -4 -4 -3 -3 -3 -2 -2 -2 -1 -1 -1 -------- Run | Yrd Mat Min Exi Min Mat Gar Fac Gar Fac Low Low Dat Pro Fac Was Fac Low Low Zio Pro Fac Upp Upp Zhi Pro Fac Upp Upp War Pro Res Tes Res Qua Frg Acc Com Ac0 Total Allies 17 | . . 2 . . . . . . . 2 . . . . . . 2 . 5 . . . 2 . . . 2 . . 1 . . . . . . 1 . Largest Group 6 | . . 2 2 . . . . . . 2 2 2 . . . . 2 2 6 6 6 . 2 2 2 2 2 2 2 1 1 . . . . . 1 . Highest-Rated Group 150 | . . 41 41 . . . . . . 32 32 32 . . . . 59 59 150 150 150 . 59 59 59 59 97 97 97 64 64 . . . . . 45 . Highest-Rated Ally 64 | . . 31 31 . . . . . . 16 16 16 . . . . 30 30 29 29 29 . 30 30 30 30 49 49 49 64 64 . . . . . 45 . Initial Warlord ECA Mod 19 | . . . . . . . 9 9 19 19 19 19 18 18 18 18 18 18 18 17 17 16 16 16 15 15 15 15 15 . . . . . . . . . Warlord Squad Rendezvous 1 | . . . . . . . . . . . . . . . . . . . . . 1 . . . . . . . . . . . . . . . . . Ranger 1 | . . . . . . . . . . . . . . . . . . . . . 1 . . . . . . . . . . . . . . . . . Total Orders . | . . . . . . . . . . . . . . . . . . . . . . . . . . . . . . . . . . . . . . . Ally Attacks 94 | . . . . . . . . . . . 10 1 . . . . . 22 . . 44 . . . 1 6 . . 10 . . . . . . . . . Total Damage 1491 | . . . . . . . . . . . 63 11 . . . . . 320 . . 660 . . . . 102 . . 335 . . . . . . . . . Kills 12 | . . . . . . . . . . . . . . . . . . 2 . . 8 . . . . . . . 2 . . . . . . . . . Allies Corrupted . | . . . . . . . . . . . . . . . . . . . . . . . . . . . . . . . . . . . . . . . Allies Melted 1 | . . . . . . . . . . . . . . . . . . . . . . . . . . 1 . . . . . . . . . . . . Intel | -11 -10 -10 -10 -9 -8 -8 -7 -7 -7 -7 -7 -7 -6 -6 -6 -6 -6 -6 -6 -5 -5 -5 -5 -5 -4 -4 -4 -4 -4 -3 -3 -3 -2 -2 -2 -1 -1 -1 ------- Run | Yrd Mat Min Exi Min Mat Gar Fac Gar Fac Low Low Dat Pro Fac Was Fac Low Low Zio Pro Fac Upp Upp Zhi Pro Fac Upp Upp War Pro Res Tes Res Qua Frg Acc Com Ac0 Active Infowar (turns) 27061 | 14 966 215 214 207 725 313 980 433 1086 407 310 63 320 97 29 2733 283 520 746 550 1425 334 385 95 338 1300 469 402 1932 326 1005 505 573 270 4066 297 1170 958 Optics 3 | . . . . . . . . . . . . . . . . 1 . . . . 2 . . . . . . . . . . . . . . . . . Sensors 1 | . . . . . . . . . . . . . . . . . . . . . 1 . . . . . . . . . . . . . . . . . A.S.S. 23897 | . . . . . 361 313 980 433 1073 407 310 63 320 97 29 1562 283 520 746 550 1425 334 385 95 338 1300 469 402 1932 326 1005 505 573 270 4066 297 1170 958 Zeronet 1 | . . . . . . . . . . . . . . . . 1 . . . . . . . . . . . . . . . . . . . . . . Terrain 702 | . . . . . . . . . 702 . . . . . . . . . . . . . . . . . . . . . . . . . . . . . Seismic 3187 | 14 966 215 214 207 364 . . . . . . . . . . 1207 . . . . . . . . . . . . . . . . . . . . . . Jamming 1 | . . . . . . . . . . . . . . . . . . . . . 1 . . . . . . . . . . . . . . . . . ECM 1 | . . . . . . . . . . . . . . . . . . . . . 1 . . . . . . . . . . . . . . . . . Robot Analysis Total 102 | . 1 . . . . . . . . . . . . . . . . . . . . . . 4 . . . . . . 97 . . . . . . . Derelict Logs Recovered 24 | . . 1 . 2 . . . . . 1 1 . 1 . . . 2 3 3 2 . 1 3 . 1 . 2 1 . . . . . . . . . . Drone Launches . | . . . . . . . . . . . . . . . . . . . . . . . . . . . . . . . . . . . . . . . Drone Recoveries . | . . . . . . . . . . . . . . . . . . . . . . . . . . . . . . . . . . . . . . . Exploration | -11 -10 -10 -10 -9 -8 -8 -7 -7 -7 -7 -7 -7 -6 -6 -6 -6 -6 -6 -6 -5 -5 -5 -5 -5 -4 -4 -4 -4 -4 -3 -3 -3 -2 -2 -2 -1 -1 -1 ------------- Run | Yrd Mat Min Exi Min Mat Gar Fac Gar Fac Low Low Dat Pro Fac Was Fac Low Low Zio Pro Fac Upp Upp Zhi Pro Fac Upp Upp War Pro Res Tes Res Qua Frg Acc Com Ac0 Turns Passed 27731 | 56 966 215 287 254 727 313 980 433 1086 407 310 63 320 97 29 2739 283 520 748 550 1425 334 385 95 338 1300 469 402 1940 326 1005 655 573 445 4175 297 1226 958 Spaces Moved 51501 | 42 948 435 465 640 1251 710 1982 714 1767 1137 975 125 1065 348 87 3147 882 1557 1618 893 3229 892 1026 179 884 2496 1032 976 2958 855 1976 1085 1446 1011 5271 619 1957 2821 Core 15 | 15 . . . . . . . . . . . . . . . . . . . . . . . . . . . . . . . . . . . . . . Treads . | . . . . . . . . . . . . . . . . . . . . . . . . . . . . . . . . . . . . . . . Legs . | . . . . . . . . . . . . . . . . . . . . . . . . . . . . . . . . . . . . . . . Wheels 66 | 27 39 . . . . . . . . . . . . . . . . . . . . . . . . . . . . . . . . . . . . . Hover . | . . . . . . . . . . . . . . . . . . . . . . . . . . . . . . . . . . . . . . . Flight 51420 | . 909 435 465 640 1251 710 1982 714 1767 1137 975 125 1065 348 87 3147 882 1557 1618 893 3229 892 1026 179 884 2496 1032 976 2958 855 1976 1085 1446 1011 5271 619 1957 2821 Fastest Speed 12 | 50 37 34 34 34 29 29 20 23 17 23 23 23 23 23 17 23 24 20 24 24 24 27 31 31 31 28 32 32 16 27 16 24 24 17 12 18 12 12 Average Speed 25 | 69 41 35 34 34 30 29 24 23 22 23 23 23 23 23 24 24 24 23 24 24 28 30 31 31 31 31 32 32 28 27 27 25 24 22 19 18 17 17 Slowest Speed 114 | 80 80 37 34 34 114 29 29 23 23 23 23 23 23 23 26 26 24 24 24 24 50 31 31 31 31 32 32 32 107 27 99 27 24 24 83 18 18 21 Overloaded Moves 886 | . . . . . . . 121 . 81 . . . . . 4 14 . 26 . . 82 13 . . . 101 . . 17 . 17 . . 40 171 . 167 32 Propulsion Burnouts . | . . . . . . . . . . . . . . . . . . . . . . . . . . . . . . . . . . . . . . . Robots Hopped 324 | . 21 3 . 10 24 . 19 1 11 4 1 . . . . 29 . 3 . . 42 1 3 . . 23 1 4 2 1 40 18 8 17 23 2 12 1 Potential Cave-ins 21 | . . . . . . . . . . . . . . . 4 1 . . . . . . . . . 7 . . 1 . 1 . . . 2 3 . 2 Cave-ins Triggered 3 | . . . . . . . . . . . . . . . . . . . . . . . . . . . . . . . 1 . . . 1 . . 1 Teleports 8 | . . . . . . . . . . . . . . . . . . . . . . . . . . . . . . . . . . . 6 . 1 1 Time Travels 1 | . . . 1 . . . . . . . . . . . . . . . . . . . . . . . . . . . . . . . . . . . Exploration Rate (%) 75 | 3 98 97 65 99 91 90 33 87 37 98 93 70 98 9 83 62 96 98 84 98 66 93 97 60 91 57 98 97 94 97 48 94 38 94 59 16 53 93 Regions Visited 38 Branch Regions 24 Pre-discovered Areas 13 | . 2 1 . 1 1 . . . . 1 . . . . . . 1 . 1 1 . . . 3 . . . 1 . . . . . . . . . . Known Exits Taken 29 | . . . . . 1 . 1 . 1 1 1 1 1 . . 1 1 1 1 1 1 1 1 1 1 1 1 1 1 1 1 1 1 1 1 1 1 . Unknown Exits Taken 5 | 1 1 1 1 1 . . . . . . . . . . . . . . . . . . . . . . . . . . . . . . . . . . Scrap Searched 49 | . . 1 . 2 . . . . . 5 8 . 2 . . . 1 3 5 4 . 3 3 . 4 . 2 3 . 3 . . . . . . . . Spaces Dug 149 | . . . . . . . . . . . . 8 . . 4 8 . . . . 43 . . . 4 40 4 . . . 15 6 1 2 . 1 9 4 Terrain Destroyed 5534 | . . . 5 24 108 53 125 . 100 22 8 12 22 3 4 457 43 85 . 27 367 30 16 . 62 372 38 13 276 37 46 374 184 169 438 223 1395 396 Melee . | . . . . . . . . . . . . . . . . . . . . . . . . . . . . . . . . . . . . . . . Projectile 2584 | . . . 5 24 108 . 85 . 92 22 8 12 22 3 4 341 43 85 . 27 191 30 16 . 62 226 38 13 276 37 46 27 14 9 77 86 252 303 AOE 2950 | . . . . . . 53 40 . 8 . . . . . . 116 . . . . 176 . . . . 146 . . . . . 347 170 160 361 137 1143 93 Terrain Rammed . | . . . . . . . . . . . . . . . . . . . . . . . . . . . . . . . . . . . . . . . Walls Destroyed . | . . . . . . . . . . . . . . . . . . . . . . . . . . . . . . . . . . . . . . . Machines Disabled . | . . . . . . . . . . . . . . . . . . . . . . . . . . . . . . . . . . . . . . . Actions | -11 -10 -10 -10 -9 -8 -8 -7 -7 -7 -7 -7 -7 -6 -6 -6 -6 -6 -6 -6 -5 -5 -5 -5 -5 -4 -4 -4 -4 -4 -3 -3 -3 -2 -2 -2 -1 -1 -1 --------- Run | Yrd Mat Min Exi Min Mat Gar Fac Gar Fac Low Low Dat Pro Fac Was Fac Low Low Zio Pro Fac Upp Upp Zhi Pro Fac Upp Upp War Pro Res Tes Res Qua Frg Acc Com Ac0 Total 66697 | 53 1342 482 601 664 1576 816 2500 993 2493 1282 1066 164 1156 366 94 5196 965 1721 1938 1234 3733 958 1092 215 961 3073 1175 1067 4217 956 2457 1453 1695 1223 8608 831 2939 3342 Wait 6753 | . 283 38 80 14 183 14 144 20 231 100 64 9 15 13 7 1478 25 75 217 310 179 1 29 26 19 184 83 70 380 57 188 172 30 100 1683 10 197 25 Move 50836 | 41 905 428 464 620 1206 708 1945 711 1744 1128 972 124 1064 348 86 3089 881 1550 1617 892 3145 889 1019 178 883 2450 1029 968 2954 852 1900 1050 1429 978 5226 614 1932 2817 Hop 300 | . 21 3 . 9 20 . 17 1 11 4 1 . . . . 28 . 3 . . 41 1 3 . . 22 1 3 1 1 34 16 8 15 21 2 12 1 Pick Up 223 | . 4 1 14 . 11 1 5 2 6 2 . 2 . . . 10 2 7 2 . 10 . . . 1 4 . . 27 1 6 3 5 2 53 3 22 17 Fast Attach 81 | 6 4 1 2 . 4 . 2 . . . . . . . . 5 . . 2 . 3 . . 1 . 3 . . 14 1 1 1 . . 21 . 6 4 Attach 18 | . . . . . 2 . 1 . . . . . . . . 2 . 1 . . . . . . . . . . 2 . . 1 . . 5 1 3 . Detach 10 | . . . 1 . 1 . . . . . . . . . . . . . . . 1 . . . . . . . 1 . . . . . 5 . 1 . Swap 147 | . 3 . . 3 3 . 3 2 3 1 . . . . . 14 . 1 2 . 27 . 1 6 . 6 . . 16 1 17 5 . 4 22 2 . 5 Drop 260 | . 4 1 17 . 13 1 8 1 6 1 . 2 . . . 12 1 6 4 . 15 . . 1 1 7 . . 36 1 7 3 4 5 61 2 22 18 Fire 5677 | 6 72 4 15 14 100 72 282 88 332 31 25 17 59 5 1 412 39 59 94 23 227 33 15 3 47 275 23 22 611 29 242 142 170 87 1068 134 519 280 Melee . | . . . . . . . . . . . . . . . . . . . . . . . . . . . . . . . . . . . . . . . Ram . | . . . . . . . . . . . . . . . . . . . . . . . . . . . . . . . . . . . . . . . Kick . | . . . . . . . . . . . . . . . . . . . . . . . . . . . . . . . . . . . . . . . Crush . | . . . . . . . . . . . . . . . . . . . . . . . . . . . . . . . . . . . . . . . Escape Stasis 314 | . . . . . . . . 150 58 . . . . . . . . . . . . . . . . 8 . . . . 1 30 . . 66 . . 1 Rewire 37 | . . . . . . . . . . 4 . . . . . . 4 . . . . . 11 . . . 13 . . 5 . . . . . . . . Trap . | . . . . . . . . . . . . . . . . . . . . . . . . . . . . . . . . . . . . . . . Miscellaneous 2041 | . 46 6 8 4 33 20 93 18 102 11 4 10 18 . . 146 13 19 . 9 85 34 14 . 10 114 26 4 175 8 61 30 49 32 377 63 225 174 Route ------- -11/Scrapyard -10/Materials (discovered 4 exits: [*Mat x3] / [*Min]) -10/Mines (discovered 3 exits: [*Mat x2] / *Exi) -10/Exiles (discovered 2 exits: *Min x2) -9/Mines (discovered 2 exits: *Mat x2) -8/Materials (discovered 3 exits: *Fac x2 / Gar) -8/Garrison (discovered 3 exits: *Fac x3) -7/Factory (discovered 6 exits: *Fac x3 / *Low x2 / Gar) -7/Garrison (discovered 3 exits: *Fac x3) -7/Factory (discovered 2 exits: *Fac / *Low) -7/Lower Caves -7/Lower Caves -7/Data Miner -6/Proximity Caves -6/Factory (discovered 3 exits: Fac / Low / Ext) -6/Waste -6/Factory (discovered 4 exits: *Fac x2 / *Low / Gar) -6/Lower Caves -6/Lower Caves (discovered 2 exits: *Fac / *Zio) -6/Zion -5/Proximity Caves -5/Factory (discovered 4 exits: *Fac x2 / *Upp x2) -5/Upper Caves -5/Upper Caves (discovered 2 exits: *Fac / *Zhi) -5/Zhirov -4/Proximity Caves -4/Factory (discovered 3 exits: *Res / *Upp / *Arm) -4/Upper Caves -4/Upper Caves (discovered 2 exits: *Res / *War) -4/Warlord -3/Proximity Caves -3/Research (discovered 2 exits: *Tes x2) -3/Testing -2/Research (discovered 2 exits: *Acc / *Qua) -2/Quarantine (discovered 3 exits: *Acc / *Sec / *Frg) -2/Protoforge -1/Access -1/Command (discovered 3 exits: Sur x2 / *Ac0) -1/Access_0 0b11 Command History --------- Turn | Location | Event 1 | -11/Scrapyard | Upgraded with Weapon slot (x3) 7 | -11/Scrapyard | Discovered new exit (range 16) 57 | -11/Scrapyard | Entered Materials 206 | -10/Materials | Discovered new exit (range 16) 312 | -10/Materials | Reached level 2 317 | -10/Materials | Build established: Gunner 357 | -10/Materials | Discovered new exit (range 12) 383 | -10/Materials | Upgraded with Utility slot (x1) 547 | -10/Materials | Reached level 3 575 | -10/Materials | Discovered new exit (range 10) 583 | -10/Materials | Upgraded with Utility slot (x1) 621 | -10/Materials | Discovered new exit (range 8) 685 | -10/Materials | Build established: Scavenger-Gunner 763 | -10/Materials | Reached level 4 950 | -10/Materials | Upgraded with Propulsion slot (x1) 1023 | -10/Materials | Entered Mines 1042 | -10/Mines | Learned location of Zion (-6) 1069 | -10/Mines | Met a Derelict bent on vengeance 1080 | -10/Mines | Reached level 5 1099 | -10/Mines | Upgraded with Propulsion slot (x1) 1140 | -10/Mines | Discovered new exit (range 14) 1150 | -10/Mines | Discovered new exit (range 7) 1199 | -10/Mines | Deemed a non-threat by the Exiles lab entrance 1200 | -10/Mines | Discovered new exit (range 5) 1238 | -10/Mines | Entered Exiles 1238 | -10/Exiles | Accompanied by 2 allies 1247 | -10/Exiles | Discovered new exit (range 15) 1253 | -10/Exiles | Met 8R-AWN 1258 | -10/Exiles | Met EX-HEX 1268 | -10/Exiles | Led the pair of lost Derelicts to a safe place 1268 | -10/Exiles | Met EX-BIN 1272 | -10/Exiles | Aligned with FarCom system 1273 | -10/Exiles | Given EX-Vault access code 1281 | -10/Exiles | Opened EX-Vault 1285 | -10/Exiles | Found Prototype Ballistic Gun 1285 | -10/Exiles | Identified XL Autogun Array 1295 | -10/Exiles | Warned to stay clear of 0b10 Research branches 1303 | -10/Exiles | Met EX-DEC 1333 | -10/Exiles | Found Prototype Device 1386 | -10/Exiles | Attacked by the Exiles 1479 | -10/Exiles | Identified Chronowheel 1479 | -10/Exiles | Activated Chronowheel 1479 | -10/Exiles | Spacetime reconverged on an earlier point 1490 | -10/Exiles | Destroyed 8R-AWN 1521 | -10/Exiles | Discovered new exit (range 12) 1525 | -10/Exiles | Left Exiles lab with XL Autogun Array 1525 | -10/Exiles | Entered Mines 1549 | -9/Mines | Discovered new exit (range 8) 1556 | -9/Mines | Reached level 6 1567 | -9/Mines | Met a Derelict who couldn't figure out how to use a Trap Extractor 1611 | -9/Mines | A weapon hastily lodged in a ceiling crevice suddenly fell to the ground 1642 | -9/Mines | Learned Materials emergency access door positions 1681 | -9/Mines | Discovered new exit (range 5) 1779 | -9/Mines | Entered Materials 1781 | -8/Materials | Reached level 7 1787 | -8/Materials | Upgraded with Utility slot (x1) 1886 | -8/Materials | Reached level 8 1899 | -8/Materials | Discovered new exit (range 12) 1905 | -8/Materials | Upgraded with Utility slot (x1) 1928 | -8/Materials | Identified exit to Garrison 1956 | -8/Materials | Garrison activated, responded to threat 1964 | -8/Materials | Reached level 9 2031 | -8/Materials | Reached level 10 2042 | -8/Materials | Upgraded with Utility slot (x1) 2071 | -8/Materials | Destroyed 17 combat bots 2145 | -8/Materials | Found Prototype Device 2145 | -8/Materials | Identified Active Sensor Suite 2146 | -8/Materials | Upgraded with Propulsion slot (x1) 2153 | -8/Materials | Destroyed 9 combat bots 2162 | -8/Materials | Reached level 11 2284 | -8/Materials | Discovered new exit (range 16) 2315 | -8/Materials | Reached level 12 2336 | -8/Materials | Destroyed 10 combat bots 2336 | -8/Materials | Upgraded with Utility slot (x1) 2368 | -8/Materials | Identified exit to Factory 2447 | -8/Materials | Sterilization system engaged 2447 | -8/Materials | Non-combat units ordered to evacuate 2450 | -8/Materials | Build established: Scavenger-Scout 2506 | -8/Materials | Entered Garrison 2554 | -8/Garrison | Destroyed 8 combat bots 2585 | -8/Garrison | Reached level 13 2645 | -8/Garrison | Garrison Relay disabled 2653 | -8/Garrison | Destroyed 23 combat bots 2723 | -8/Garrison | Discovered exit to Factory (range 3) 2734 | -8/Garrison | Phase Generator disabled 2757 | -8/Garrison | Discovered exit to Factory (range 9) 2761 | -8/Garrison | Discovered exit to Factory (range 6) 2761 | -8/Garrison | Discovered exit to Factory (range 63) 2761 | -8/Garrison | Discovered exit to Factory (range 71) 2765 | -8/Garrison | Attempted to access garrison exit controls, blocked by remote lockdown 2772 | -8/Garrison | Garrison Relay disabled 2775 | -8/Garrison | Garrison Relay disabled 2797 | -8/Garrison | Garrison Relay disabled 2813 | -8/Garrison | Garrison Relay disabled 2819 | -8/Garrison | Entered Factory 2821 | -7/Factory | Reached level 14 2828 | -7/Factory | Discovered new exit (range 9) 2832 | -7/Factory | Identified exit to Factory 2843 | -7/Factory | Upgraded with Utility slot (x1) 2843 | -7/Factory | Identified exit to Lower Caves 2867 | -7/Factory | Reached level 15 2875 | -7/Factory | Upgraded with Propulsion slot (x1) 2888 | -7/Factory | Discovered exit to Factory (range 15) 2995 | -7/Factory | Destroyed 14 combat bots 3009 | -7/Factory | Discovered exit to Factory (range 15) 3096 | -7/Factory | Reached level 16 3096 | -7/Factory | High security lockdown imminent 3127 | -7/Factory | Identified exit to Garrison 3176 | -7/Factory | High security lockdown engaged 3203 | -7/Factory | Garrison activated, responded to threat 3258 | -7/Factory | Destroyed 9 combat bots 3296 | -7/Factory | Destroyed 10 combat bots 3368 | -7/Factory | Reached level 17 3428 | -7/Factory | Destroyed 7 combat bots 3482 | -7/Factory | Destroyed 12 combat bots 3503 | -7/Factory | Garrison activated, responded to threat 3566 | -7/Factory | Destroyed 18 combat bots 3610 | -7/Factory | Destroyed 11 combat bots 3647 | -7/Factory | Reached level 18 3756 | -7/Factory | Upgraded with Utility slot (x1) 3764 | -7/Factory | Sterilization system engaged 3764 | -7/Factory | Non-combat units ordered to evacuate 3769 | -7/Factory | Destroyed 25 combat bots 3799 | -7/Factory | Entered Garrison 3807 | -7/Garrison | Garrison Relay disabled 3988 | -7/Garrison | Destroyed 32 combat bots 4004 | -7/Garrison | Discovered new exit (range 13) 4007 | -7/Garrison | Identified exit to Factory 4018 | -7/Garrison | Garrison Relay disabled 4082 | -7/Garrison | Reached level 19 4109 | -7/Garrison | Garrison Relay disabled 4112 | -7/Garrison | Garrison Relay disabled 4112 | -7/Garrison | Garrison Relay disabled 4113 | -7/Garrison | Garrison Relay disabled 4113 | -7/Garrison | Garrison Relay disabled 4125 | -7/Garrison | Discovered exit to Factory (range 8) 4187 | -7/Garrison | Garrison Relay disabled 4212 | -7/Garrison | Discovered exit to Factory (range 10) 4232 | -7/Garrison | Entered Factory 4241 | -7/Factory | Discovered exit to Lower Caves (range 15) 4274 | -7/Factory | High security lockdown imminent 4323 | -7/Factory | Identified exit to Garrison 4354 | -7/Factory | High security lockdown engaged 4667 | -7/Factory | Garrison activated, responded to threat 4687 | -7/Factory | Discovered exit to Factory (range 16) 4734 | -7/Factory | Destroyed 50 combat bots 4870 | -7/Factory | Destroyed 9 combat bots 4887 | -7/Factory | Garrison activated, responded to threat 4942 | -7/Factory | Destroyed 11 combat bots 5036 | -7/Factory | Reached level 20 5123 | -7/Factory | Sterilization system engaged 5123 | -7/Factory | Non-combat units ordered to evacuate 5164 | -7/Factory | Destroyed 40 combat bots 5223 | -7/Factory | Combat units ordered to evacuate 5282 | -7/Factory | Destroyed 19 combat bots 5318 | -7/Factory | Entered Lower Caves 5319 | -7/Lower Caves | Encountered a Warlord checkpoint 5334 | -7/Lower Caves | Met a Warlord Commander 5335 | -7/Lower Caves | Learned location of Warlord (-4) 5336 | -7/Lower Caves | Warlord Commander delivered Encrypted Comm Array 5340 | -7/Lower Caves | Found Encrypted Comm Array 5371 | -7/Lower Caves | Attracted the attention of an 0b10 checkpoint 5392 | -7/Lower Caves | Spotted B-75 Beast 5394 | -7/Lower Caves | Destroyed B-75 Beast 5415 | -7/Lower Caves | Destroyed 9 combat bots 5453 | -7/Lower Caves | Learned Factory emergency access door positions 5470 | -7/Lower Caves | Discovered new exit (range 8) 5471 | -7/Lower Caves | Identified exit to Lower Caves 5477 | -7/Lower Caves | Attacked by a delusional Derelict stockpiling Unaware 5725 | -7/Lower Caves | Entered another Lower Caves area 5725 | -7/Lower Caves | Accompanied by 2 allies 5735 | -7/Lower Caves | Learned 12 Factory zone layouts 5825 | -7/Lower Caves | Spotted B-75 Beast 5829 | -7/Lower Caves | Destroyed B-75 Beast 5857 | -7/Lower Caves | Encountered a Warlord checkpoint 5874 | -7/Lower Caves | Attracted the attention of an 0b10 checkpoint 5944 | -7/Lower Caves | Encountered a Master Thief 5953 | -7/Lower Caves | Encountered a Master Thief 5954 | -7/Lower Caves | Encountered a Master Thief 5955 | -7/Lower Caves | Encountered a Master Thief 5979 | -7/Lower Caves | Discovered new exit (range 9) 5983 | -7/Lower Caves | Identified exit to Data Miner 6035 | -7/Lower Caves | Entered Data Miner 6035 | -7/Data Miner | Accompanied by 2 allies 6035 | -7/Data Miner | Discovered new exit (range 6) 6040 | -7/Data Miner | Met Data Miner 6047 | -7/Data Miner | Received God Mode back door access code from Data Miner 6097 | -7/Data Miner | Identified exit to Proximity Caves 6098 | -7/Data Miner | Entered Proximity Caves 6131 | -6/Proximity Caves | Attracted the attention of an 0b10 base 6139 | -6/Proximity Caves | Learned Extension trap positions 6139 | -6/Proximity Caves | Learned Factory terminal intel 6139 | -6/Proximity Caves | Learned Extension terminal intel 6139 | -6/Proximity Caves | Learned Research garrison access intel 6153 | -6/Proximity Caves | Destroyed 14 combat bots 6182 | -6/Proximity Caves | Attracted the attention of an 0b10 checkpoint 6251 | -6/Proximity Caves | Spotted B-75 Beast 6261 | -6/Proximity Caves | Destroyed B-75 Beast 6296 | -6/Proximity Caves | Discovered exit to Factory (range 11) 6296 | -6/Proximity Caves | Reached level 21 6310 | -6/Proximity Caves | Learned location of 1 exit from Factory 6418 | -6/Proximity Caves | Entered Factory 6419 | -6/Factory | Identified exit to Extension 6420 | -6/Factory | Identified exit to Lower Caves 6420 | -6/Factory | Identified exit to Factory 6422 | -6/Factory | Loaded intel: 28 terminal locations 6515 | -6/Factory | Sucked down chute 6515 | -6/Factory | Entered Waste 6518 | -6/Waste | Spotted C-40 Crusher 6520 | -6/Waste | Spotted C-40 Crusher 6520 | -6/Waste | Spotted C-40 Crusher 6530 | -6/Waste | EMP discharged 6530 | -6/Waste | Crushed by Compactor (1 part destroyed, 2 dropped) 6531 | -6/Waste | Spotted C-40 Crusher 6532 | -6/Waste | Spotted C-40 Crusher 6532 | -6/Waste | Spotted C-40 Crusher 6537 | -6/Waste | Discovered new exit (range 12) 6544 | -6/Waste | Identified exit to Factory 6544 | -6/Waste | Entered Factory 7774 | -6/Factory | Cargo convoy interrupted 7803 | -6/Factory | Destroyed 8 combat bots 7889 | -6/Factory | Destroyed 8 combat bots 7890 | -6/Factory | Found Prototype Processor 7890 | -6/Factory | Identified Spectral Analyzer 7969 | -6/Factory | Garrison activated, responded to threat 8040 | -6/Factory | Discovered exit to Factory (range 4) 8062 | -6/Factory | Destroyed 8 combat bots 8087 | -6/Factory | Identified exit to Garrison 8090 | -6/Factory | Unchained authorized (BL-1NK) 8187 | -6/Factory | Spotted BL-1NK 8294 | -6/Factory | First assault squad dispatched 8324 | -6/Factory | Reached level 22 8368 | -6/Factory | Destroyed 11 combat bots 8514 | -6/Factory | Spotted BL-1NK 8561 | -6/Factory | Destroyed BL-1NK 8576 | -6/Factory | Found Prototype Processor 8576 | -6/Factory | Identified Zeronet Interface 8610 | -6/Factory | Discovered exit to Lower Caves (range 4) 8652 | -6/Factory | Unchained authorized (6S-H0T) 8656 | -6/Factory | Destroyed 7 combat bots 8701 | -6/Factory | High security lockdown imminent 8725 | -6/Factory | Spotted B-75 Beast 8729 | -6/Factory | Destroyed B-75 Beast 8781 | -6/Factory | High security lockdown engaged 8786 | -6/Factory | Discovered exit to Factory (range 8) 8837 | -6/Factory | Destroyed 12 combat bots 8919 | -6/Factory | Garrison activated, responded to threat 8989 | -6/Factory | Destroyed 13 combat bots 9137 | -6/Factory | Sterilization system engaged 9137 | -6/Factory | Non-combat units ordered to evacuate 9176 | -6/Factory | Reached level 23 9218 | -6/Factory | Core integrity fell below 50% 9237 | -6/Factory | Combat units ordered to evacuate 9239 | -6/Factory | Destroyed 68 combat bots 9283 | -6/Factory | Entered Lower Caves 9361 | -6/Lower Caves | Attracted the attention of an 0b10 outpost 9394 | -6/Lower Caves | Destroyed 13 combat bots 9401 | -6/Lower Caves | Spotted B-75 Beast 9404 | -6/Lower Caves | Destroyed B-75 Beast 9456 | -6/Lower Caves | Encountered a Warlord checkpoint 9509 | -6/Lower Caves | Discovered new exit (range 7) 9510 | -6/Lower Caves | Identified exit to Lower Caves 9566 | -6/Lower Caves | Entered another Lower Caves area 9566 | -6/Lower Caves | Accompanied by 2 allies 9568 | -6/Lower Caves | Discovered exit to Factory (range 16) 9657 | -6/Lower Caves | Learned 4 Factory zone layouts 9683 | -6/Lower Caves | Attracted the attention of an 0b10 base 9769 | -6/Lower Caves | Destroyed 10 combat bots 9782 | -6/Lower Caves | Encountered a Master Thief 9786 | -6/Lower Caves | Encountered a Master Thief 9787 | -6/Lower Caves | Encountered a Master Thief 9788 | -6/Lower Caves | Encountered a Master Thief 9809 | -6/Lower Caves | Encountered a Master Thief 9893 | -6/Lower Caves | Discovered new exit (range 6) 9894 | -6/Lower Caves | Identified exit to Zion 9982 | -6/Lower Caves | Learned Factory garrison access intel 10005 | -6/Lower Caves | Upgraded with Weapon slot (x1) 10086 | -6/Lower Caves | Entered Zion 10086 | -6/Zion | Accompanied by 1 ally 10088 | -6/Zion | Learned Factory stockpile data 10094 | -6/Zion | Discovered new exit (range 15) 10113 | -6/Zion | Found Prototype Energy Gun 10113 | -6/Zion | Identified Storm Laser 10149 | -6/Zion | Learned Factory trap positions 10158 | -6/Zion | Learned location of 1 exit from Factory 10178 | -6/Zion | Learned location of Armory (-4) 10208 | -6/Zion | Gained Derelict followers 10233 | -6/Zion | Visited the Megawrench Repair Shop 10234 | -6/Zion | Megawrench repaired 1 part 10621 | -6/Zion | Identified exit to Proximity Caves 10834 | -6/Zion | Entered Proximity Caves 10834 | -5/Proximity Caves | Accompanied by 6 allies 10964 | -5/Proximity Caves | Spotted B-75 Beast 10968 | -5/Proximity Caves | Destroyed B-75 Beast 10981 | -5/Proximity Caves | Discovered exit to Factory (range 12) 11000 | -5/Proximity Caves | Learned Factory garrison access intel 11274 | -5/Proximity Caves | Received a Behemoth hack from an annoying Tinkerer 11384 | -5/Proximity Caves | Entered Factory 11384 | -5/Factory | Accompanied by 6 allies 11385 | -5/Factory | Identified exit to Upper Caves 11387 | -5/Factory | Loaded intel: 92 trap records 11389 | -5/Factory | Loaded intel: 4 garrison access locations 11482 | -5/Factory | Allied Derelicts emerged from ambush trap array 11485 | -5/Factory | Reached level 24 11538 | -5/Factory | Unchained authorized (6S-H0T) 11580 | -5/Factory | Garrison activated, responded to threat 11688 | -5/Factory | Discovered new exit (range 15) 11692 | -5/Factory | Identified exit to Factory 11734 | -5/Factory | Spotted 6S-H0T 11750 | -5/Factory | Core integrity fell below 50% 11796 | -5/Factory | Core integrity fell below 20% 11852 | -5/Factory | Destroyed 6S-H0T 11901 | -5/Factory | Discovered exit to Upper Caves (range 5) 11961 | -5/Factory | Unchained authorized (1B-0RG) 12160 | -5/Factory | Cargo convoy interrupted 12200 | -5/Factory | Destroyed 15 combat bots 12268 | -5/Factory | Found Prototype Device 12268 | -5/Factory | Identified Exp. ECM Suite 12273 | -5/Factory | Found Prototype Processor 12273 | -5/Factory | Identified Spectral Analyzer 12284 | -5/Factory | First assault squad dispatched 12327 | -5/Factory | Spotted 1B-0RG 12440 | -5/Factory | Reached level 25 12440 | -5/Factory | High security lockdown imminent 12503 | -5/Factory | Destroyed 12 combat bots 12520 | -5/Factory | High security lockdown engaged 12636 | -5/Factory | Discovered exit to Factory (range 5) 12669 | -5/Factory | Joined by Warlord Ranger squad 12809 | -5/Factory | Entered Upper Caves 12811 | -5/Upper Caves | Encountered a Master Thief 12812 | -5/Upper Caves | Encountered a Master Thief 12873 | -5/Upper Caves | Learned Factory garrison access intel 12921 | -5/Upper Caves | Build established: Hacker-Scout 12924 | -5/Upper Caves | Discovered new exit (range 5) 12926 | -5/Upper Caves | Identified exit to Upper Caves 12982 | -5/Upper Caves | Attracted the attention of an 0b10 outpost 13070 | -5/Upper Caves | Attracted the attention of an 0b10 checkpoint 13143 | -5/Upper Caves | Entered another Upper Caves area 13153 | -5/Upper Caves | Attracted the attention of an 0b10 outpost 13181 | -5/Upper Caves | Destroyed 7 combat bots 13195 | -5/Upper Caves | Learned Factory terminal intel 13208 | -5/Upper Caves | Entered an active Warlord outpost 13253 | -5/Upper Caves | Discovered exit to Factory (range 8) 13294 | -5/Upper Caves | Learned Factory terminal intel 13446 | -5/Upper Caves | Discovered new exit (range 10) 13449 | -5/Upper Caves | Identified exit to Zhirov 13528 | -5/Upper Caves | Entered Zhirov 13528 | -5/Zhirov | Accompanied by 2 allies 13528 | -5/Zhirov | Discovered new exit (range 3) 13534 | -5/Zhirov | Met Zhirov 13544 | -5/Zhirov | Found Alien Artifact 13544 | -5/Zhirov | Identified Integrated Reactor 13544 | -5/Zhirov | Installed Integrated Reactor, increased core energy generation (+10) 13563 | -5/Zhirov | Learned location of Quarantine (-2) 13563 | -5/Zhirov | Learned location of Testing (-3) 13563 | -5/Zhirov | Learned location of Command (-1) 13566 | -5/Zhirov | Zhirov requested help retrieving the SGEMP Prototype 13596 | -5/Zhirov | Identified exit to Proximity Caves 13623 | -5/Zhirov | Entered Proximity Caves 13623 | -4/Proximity Caves | Accompanied by 2 allies 13677 | -4/Proximity Caves | Destroyed 11 combat bots 13763 | -4/Proximity Caves | Learned 8 Research zone layouts 13768 | -4/Proximity Caves | Spotted B-86 Titan 13775 | -4/Proximity Caves | Reached level 26 13775 | -4/Proximity Caves | Destroyed B-86 Titan 13778 | -4/Proximity Caves | Discovered exit to Factory (range 13) 13779 | -4/Proximity Caves | Attracted the attention of an 0b10 checkpoint 13961 | -4/Proximity Caves | Entered Factory 13961 | -4/Factory | Accompanied by 2 allies 13962 | -4/Factory | Loaded intel: 26 terminal locations 13963 | -4/Factory | Loaded intel: 4 garrison access locations 14000 | -4/Factory | Garrison activated, responded to threat 14099 | -4/Factory | Unchained authorized (1B-0RG) 14228 | -4/Factory | Destroyed 8 combat bots 14260 | -4/Factory | Reached level 27 14296 | -4/Factory | Destroyed 13 combat bots 14461 | -4/Factory | First assault squad dispatched 14469 | -4/Factory | Core integrity fell below 50% 14474 | -4/Factory | Destroyed 12 combat bots 14523 | -4/Factory | Upgraded with Utility slot (x1) 14624 | -4/Factory | Garrison activated, responded to threat 14736 | -4/Factory | Discovered new exit (range 12) 14838 | -4/Factory | Discovered new exit (range 15) 14852 | -4/Factory | Watched by a mysterious "MATRIX" hacker 14871 | -4/Factory | Garrison activated, responded to threat 14874 | -4/Factory | High security lockdown imminent 14935 | -4/Factory | Destroyed 16 combat bots 14954 | -4/Factory | High security lockdown engaged 14971 | -4/Factory | Spotted B-86 Titan 14983 | -4/Factory | Identified exit to Armory 15041 | -4/Factory | Identified exit to Research 15063 | -4/Factory | Reached level 28 15244 | -4/Factory | Discovered new exit (range 16) 15251 | -4/Factory | Identified exit to Upper Caves 15261 | -4/Factory | Entered Upper Caves 15281 | -4/Upper Caves | Learned 8 Research zone layouts 15291 | -4/Upper Caves | Learned 4 Research zone layouts 15357 | -4/Upper Caves | Discovered new exit (range 15) 15362 | -4/Upper Caves | Attracted the attention of an 0b10 outpost 15391 | -4/Upper Caves | Identified exit to Upper Caves 15394 | -4/Upper Caves | Destroyed 9 combat bots 15730 | -4/Upper Caves | Entered another Upper Caves area 15730 | -4/Upper Caves | Accompanied by 2 allies 15731 | -4/Upper Caves | Identified exit to Warlord 15746 | -4/Upper Caves | Discovered exit to Research (range 12) 16054 | -4/Upper Caves | Spotted B-86 Titan 16058 | -4/Upper Caves | Destroyed B-86 Titan 16132 | -4/Upper Caves | Entered Warlord 16132 | -4/Warlord | Accompanied by 2 allies 16143 | -4/Warlord | System corruption cleaned by Quarantine Array 16211 | -4/Warlord | Found Prototype Energy Gun 16211 | -4/Warlord | Identified Plasma Storm 16261 | -4/Warlord | Visited the Vortex Lab 16263 | -4/Warlord | Found Prototype Energy Cannon 16264 | -4/Warlord | Warlord's base attacked by MAIN.C 16281 | -4/Warlord | Identified Vortex Cannon 16297 | -4/Warlord | Found Prototype Device 16297 | -4/Warlord | Identified Thermal Barrier 16374 | -4/Warlord | Met Warlord 16460 | -4/Warlord | Destroyed 21 combat bots 16495 | -4/Warlord | Discovered new exit (range 14) 16511 | -4/Warlord | Destroyed 12 combat bots 16564 | -4/Warlord | Spotted Striker 16565 | -4/Warlord | Destroyed Striker 16567 | -4/Warlord | Spotted Striker 16569 | -4/Warlord | Destroyed Striker 16614 | -4/Warlord | Warlord forces counterattacked 16623 | -4/Warlord | Destroyed 14 combat bots 16665 | -4/Warlord | Spotted Striker 16665 | -4/Warlord | Spotted B-90 Cyclops 16672 | -4/Warlord | Destroyed Striker 16674 | -4/Warlord | Spotted Executioner 16695 | -4/Warlord | Destroyed Executioner 16695 | -4/Warlord | Reached level 29 16703 | -4/Warlord | Destroyed B-90 Cyclops 16742 | -4/Warlord | Destroyed 15 combat bots 16769 | -4/Warlord | Spotted Executioner 16771 | -4/Warlord | Spotted Executioner 16776 | -4/Warlord | Spotted Executioner 16794 | -4/Warlord | Destroyed Executioner 16794 | -4/Warlord | Destroyed Executioner 16796 | -4/Warlord | Destroyed Executioner 16819 | -4/Warlord | Destroyed 16 combat bots 16822 | -4/Warlord | Lost 8 allies 16852 | -4/Warlord | Upgraded with Propulsion slot (x1) 16896 | -4/Warlord | Spotted Executioner 16902 | -4/Warlord | Spotted B-90 Cyclops 16904 | -4/Warlord | Spotted B-86 Titan 16925 | -4/Warlord | Destroyed Executioner 16929 | -4/Warlord | Destroyed B-90 Cyclops 16931 | -4/Warlord | Lost 4 allies 16939 | -4/Warlord | Warlord base infiltrated, sounded retreat 16941 | -4/Warlord | Destroyed B-86 Titan 17063 | -4/Warlord | Attached CPS modules to LV-01A 17065 | -4/Warlord | Attacked by Warlord forces 17078 | -4/Warlord | Found Prototype Device 17078 | -4/Warlord | Identified Matter Focus 17080 | -4/Warlord | Found Prototype Device 17082 | -4/Warlord | Found Prototype Launcher 17082 | -4/Warlord | Identified Exp. Neutron Missile Launcher 17133 | -4/Warlord | Identified Exp. Focal Shield 17154 | -4/Warlord | Destroyed Striker 17197 | -4/Warlord | Destroyed 12 combat bots 17213 | -4/Warlord | Destroyed B-86 Titan 17216 | -4/Warlord | Spotted B-90 Cyclops 17250 | -4/Warlord | Destroyed B-90 Cyclops 17322 | -4/Warlord | Spotted Executioner 17334 | -4/Warlord | Destroyed Executioner 17346 | -4/Warlord | Build established: Scavenger-Scout 17355 | -4/Warlord | Destroyed 20 combat bots 17364 | -4/Warlord | Destroyed Executioner 17400 | -4/Warlord | Spotted Striker 17413 | -4/Warlord | Destroyed Striker 17451 | -4/Warlord | Destroyed 19 combat bots 17490 | -4/Warlord | Destroyed Striker 17502 | -4/Warlord | Spotted Striker 17515 | -4/Warlord | Destroyed Striker 17542 | -4/Warlord | Spotted Executioner 17544 | -4/Warlord | Destroyed Executioner 17589 | -4/Warlord | Spotted Executioner 17592 | -4/Warlord | Destroyed Executioner 17601 | -4/Warlord | Destroyed Striker 17617 | -4/Warlord | Spotted Striker 17619 | -4/Warlord | Destroyed Striker 17646 | -4/Warlord | Reached level 30 17652 | -4/Warlord | Destroyed Striker 17693 | -4/Warlord | Destroyed 39 combat bots 17698 | -4/Warlord | Spotted Executioner 17700 | -4/Warlord | Destroyed Executioner 17709 | -4/Warlord | Upgraded with Power slot (x1) 17720 | -4/Warlord | Found Prototype Reactor 17720 | -4/Warlord | Identified Vortex Chain Reactor 17758 | -4/Warlord | Spotted Executioner 17762 | -4/Warlord | Destroyed Executioner 17789 | -4/Warlord | Destroyed Executioner 17805 | -4/Warlord | Spotted Executioner 17806 | -4/Warlord | Destroyed Executioner 17809 | -4/Warlord | Destroyed Executioner 17855 | -4/Warlord | Spotted Executioner 17857 | -4/Warlord | Destroyed Executioner 17874 | -4/Warlord | Found Prototype Processor 17874 | -4/Warlord | Identified Exp. Armor Integrity Analyzer 17880 | -4/Warlord | Destroyed 45 combat bots 18031 | -4/Warlord | Destroyed Fake God Mode 18072 | -4/Warlord | Identified exit to Proximity Caves 18072 | -4/Warlord | Entered Proximity Caves 18100 | -3/Proximity Caves | Spotted B-86 Titan 18103 | -3/Proximity Caves | Destroyed B-86 Titan 18180 | -3/Proximity Caves | Attracted the attention of an 0b10 outpost 18306 | -3/Proximity Caves | Discovered exit to Research (range 10) 18323 | -3/Proximity Caves | Found Alien Artifact 18323 | -3/Proximity Caves | Identified Dimensional Node Initializer 18323 | -3/Proximity Caves | Initialized slip node 18398 | -3/Proximity Caves | Entered Research 18398 | -3/Research | Accompanied by 1 ally 18400 | -3/Research | Loaded intel: 4 garrison access locations 18648 | -3/Research | Search patrols dispatched 18689 | -3/Research | Unchained authorized (CL-0N3) 18689 | -3/Research | Found Prototype Device 18689 | -3/Research | Identified Exp. Thermal Shield 18756 | -3/Research | Spotted B-86 Titan 18762 | -3/Research | Destroyed B-86 Titan 18797 | -3/Research | T-07 Excavator reconstituted as Executioner 18797 | -3/Research | Spotted Executioner 18799 | -3/Research | Destroyed Executioner 18799 | -3/Research | Executioner reconstituted as CL-0N3 18799 | -3/Research | Spotted CL-0N3 18810 | -3/Research | Destroyed CL-0N3 18813 | -3/Research | Extracted schematics, analyses from CL-0N3's data core 18819 | -3/Research | Garrison activated, responded to threat 18860 | -3/Research | Reached level 31 18889 | -3/Research | Destroyed 13 combat bots 18895 | -3/Research | Crushed by falling debris 19050 | -3/Research | Spotted Executioner 19051 | -3/Research | Cargo convoy interrupted 19055 | -3/Research | Spotted Executioner 19059 | -3/Research | Destroyed Executioner 19067 | -3/Research | Destroyed Executioner 19107 | -3/Research | Found Prototype Device 19107 | -3/Research | Identified Adv. Particle Accelerator 19115 | -3/Research | Found Prototype Launcher 19115 | -3/Research | Identified Ragnarok Missile Launcher 19132 | -3/Research | Destroyed 21 combat bots 19154 | -3/Research | High security lockdown imminent 19193 | -3/Research | Identified exit to Testing 19234 | -3/Research | High security lockdown engaged 19258 | -3/Research | Spotted B-86 Titan 19259 | -3/Research | Destroyed B-86 Titan 19302 | -3/Research | Destroyed 8 combat bots 19351 | -3/Research | Destroyed 8 combat bots 19403 | -3/Research | Entered Testing 19417 | -3/Testing | Destroyed 7 combat bots 19530 | -3/Testing | Unchained authorized (V4-D3R) 19547 | -3/Testing | Found Prototype Device 19547 | -3/Testing | Identified 2N-1CE's Frost Array 19592 | -3/Testing | Spotted Striker 19594 | -3/Testing | Spotted Striker 19605 | -3/Testing | Destroyed 10 combat bots 19617 | -3/Testing | High security lockdown imminent 19697 | -3/Testing | High security lockdown engaged 19712 | -3/Testing | Discovered new exit (range 14) 19772 | -3/Testing | Reached level 32 19825 | -3/Testing | Destroyed Investigator 19828 | -3/Testing | Destroyed Striker 19851 | -3/Testing | Destroyed 47 combat bots 19851 | -3/Testing | Upgraded with Utility slot (x1) 19973 | -3/Testing | Spotted Executioner 19982 | -3/Testing | Destroyed Executioner 20010 | -3/Testing | Destroyed 26 combat bots 20037 | -3/Testing | Spotted V4-D3R 20057 | -3/Testing | Identified exit to Research 20058 | -3/Testing | Entered Research 20058 | -2/Research | Warlord forces began assault on 0b10 20091 | -2/Research | Core integrity fell below 50% 20107 | -2/Research | High security lockdown imminent 20154 | -2/Research | Borebot progress halted 20168 | -2/Research | Research machine network offline 20187 | -2/Research | High security lockdown engaged 20192 | -2/Research | Reached level 33 20221 | -2/Research | Spotted PM-9HS(L) 20224 | -2/Research | Destroyed PM-9HS(L) 20349 | -2/Research | Discovered new exit (range 5) 20353 | -2/Research | Identified exit to Quarantine 20377 | -2/Research | Spotted 9N-OU8(L) 20421 | -2/Research | Spotted 6K-G9Y(K) 20453 | -2/Research | Destroyed 7 combat bots 20466 | -2/Research | Spotted 1B-HFJ(g) 20472 | -2/Research | Destroyed 1B-HFJ(g) 20474 | -2/Research | Discovered new exit (range 18) 20479 | -2/Research | Attacked by Warlord 20523 | -2/Research | Spotted RO-D3X(K) 20539 | -2/Research | Found Launcher Loader 20552 | -2/Research | Spotted Striker 20559 | -2/Research | Destroyed Striker 20570 | -2/Research | Spotted ZO-7BW(H) 20575 | -2/Research | Destroyed ZO-7BW(H) 20613 | -2/Research | Spotted Executioner 20618 | -2/Research | Destroyed Executioner 20620 | -2/Research | Spotted Striker 20625 | -2/Research | Destroyed Striker 20631 | -2/Research | Entered Quarantine 20646 | -2/Quarantine | Destroyed 10 combat bots 20771 | -2/Quarantine | Discovered new exit (range 17) 20799 | -2/Quarantine | Unchained authorized (V4-D3R) 20822 | -2/Quarantine | Spotted Alpha 7 20829 | -2/Quarantine | Destroyed Alpha 7 20836 | -2/Quarantine | Found Alien Artifact 20881 | -2/Quarantine | First assault squad dispatched 20923 | -2/Quarantine | Reached level 34 20930 | -2/Quarantine | Found Prototype Device 20930 | -2/Quarantine | Identified Exp. Shock Absorption System 21007 | -2/Quarantine | Spotted Fortress 21025 | -2/Quarantine | Destroyed 18 combat bots 21030 | -2/Quarantine | Discovered new exit (range 5) 21030 | -2/Quarantine | Discovered new exit (range 6) 21031 | -2/Quarantine | Identified exit to Section 7 21049 | -2/Quarantine | Identified exit to Protoforge 21076 | -2/Quarantine | Entered Protoforge 21152 | -2/Protoforge | Superfortress began startup sequence 21163 | -2/Protoforge | Forge Plexus network access discovered 21209 | -2/Protoforge | Discovered new exit (range 4) 21209 | -2/Protoforge | Identified exit to Access 21244 | -2/Protoforge | Spotted B-90 Cyclops 21249 | -2/Protoforge | Spotted Hotshot 21252 | -2/Protoforge | Spotted Hotshot 21252 | -2/Protoforge | Spotted Hotshot 21252 | -2/Protoforge | Spotted Hotshot 21257 | -2/Protoforge | Destroyed 10 combat bots 21266 | -2/Protoforge | Garrison activated, responded to threat 21290 | -2/Protoforge | Found Crosscalibrator 21312 | -2/Protoforge | Spotted Decapitator 21312 | -2/Protoforge | Spotted Decapitator 21312 | -2/Protoforge | Spotted Decapitator 21312 | -2/Protoforge | Spotted Decapitator 21312 | -2/Protoforge | Spotted Decapitator 21312 | -2/Protoforge | Spotted Decapitator 21312 | -2/Protoforge | Spotted Decapitator 21315 | -2/Protoforge | Destroyed Decapitator 21315 | -2/Protoforge | Destroyed Decapitator 21315 | -2/Protoforge | Destroyed Decapitator 21317 | -2/Protoforge | Destroyed Decapitator 21317 | -2/Protoforge | Destroyed Decapitator 21318 | -2/Protoforge | Destroyed Decapitator 21318 | -2/Protoforge | Destroyed Decapitator 21326 | -2/Protoforge | First assault squad dispatched 21342 | -2/Protoforge | Found Cep. Zero-point Core 21347 | -2/Protoforge | Found Faulty Cep. Zero-point Core 21351 | -2/Protoforge | Destroyed 9 combat bots 21422 | -2/Protoforge | Destroyed Hotshot 21423 | -2/Protoforge | Destroyed Hotshot 21426 | -2/Protoforge | Destroyed Hotshot 21429 | -2/Protoforge | Destroyed Hotshot 21461 | -2/Protoforge | Spotted Immortal 21461 | -2/Protoforge | Spotted Immortal 21515 | -2/Protoforge | Destroyed 12 combat bots 21517 | -2/Protoforge | Spotted Decapitator 21517 | -2/Protoforge | Spotted Decapitator 21517 | -2/Protoforge | Spotted Decapitator 21517 | -2/Protoforge | Spotted V774-m 21518 | -2/Protoforge | Spotted V243-a 21524 | -2/Protoforge | Found Exp. Kinecellerator 21534 | -2/Protoforge | Destroyed Decapitator 21536 | -2/Protoforge | Destroyed Decapitator 21537 | -2/Protoforge | Destroyed Decapitator 21570 | -2/Protoforge | Spotted Decapitator 21575 | -2/Protoforge | Destroyed Decapitator 21588 | -2/Protoforge | Found Exp. Active Sensor Suite 21600 | -2/Protoforge | Spotted Hotshot 21600 | -2/Protoforge | Spotted Hotshot 21601 | -2/Protoforge | Destroyed Hotshot 21601 | -2/Protoforge | Spotted Hotshot 21602 | -2/Protoforge | Spotted Hotshot 21602 | -2/Protoforge | Destroyed Hotshot 21605 | -2/Protoforge | Destroyed Hotshot 21607 | -2/Protoforge | Destroyed Hotshot 21622 | -2/Protoforge | Spotted Immortal 21622 | -2/Protoforge | Spotted Immortal 21630 | -2/Protoforge | Destroyed Immortal 21635 | -2/Protoforge | Destroyed Immortal 21638 | -2/Protoforge | Spotted V481-b 21705 | -2/Protoforge | Spotted V812-z 21723 | -2/Protoforge | Build established: Hacker-Scout 21811 | -2/Protoforge | Destroyed 7 combat bots 21827 | -2/Protoforge | Reached level 35 21867 | -2/Protoforge | Destroyed 9 combat bots 21873 | -2/Protoforge | Found Faulty Cep. Fieldthrust Drive 21874 | -2/Protoforge | Found Faulty Cep. Fieldthrust Drive 22054 | -2/Protoforge | Found Cep. Matter Streamer 22064 | -2/Protoforge | Destroyed 14 combat bots 22088 | -2/Protoforge | Destroyed AP7-3 22094 | -2/Protoforge | Spotted AP7-3 22096 | -2/Protoforge | Destroyed AP7-3 22120 | -2/Protoforge | Found Cep. Dimensional Manipulator 22191 | -2/Protoforge | Destroyed 8 combat bots 22327 | -2/Protoforge | Spotted Executioner 22331 | -2/Protoforge | Spotted Immortal 22351 | -2/Protoforge | Destroyed Striker 22369 | -2/Protoforge | Destroyed Executioner 22370 | -2/Protoforge | Spotted Hotshot 22371 | -2/Protoforge | Spotted Hotshot 22388 | -2/Protoforge | Spotted Executioner 22388 | -2/Protoforge | Spotted Striker 22388 | -2/Protoforge | Spotted Striker 22394 | -2/Protoforge | Spotted Decapitator 22396 | -2/Protoforge | Destroyed Decapitator 22405 | -2/Protoforge | Spotted Striker 22408 | -2/Protoforge | Spotted Decapitator 22417 | -2/Protoforge | Destroyed Decapitator 22418 | -2/Protoforge | Destroyed Striker 22419 | -2/Protoforge | Destroyed Striker 22421 | -2/Protoforge | Destroyed Striker 22504 | -2/Protoforge | Destroyed Executioner 22523 | -2/Protoforge | Destroyed Hotshot 22527 | -2/Protoforge | Destroyed Hotshot 22528 | -2/Protoforge | Found Prototype Device 22528 | -2/Protoforge | Identified Adv. Kinecellerator 22531 | -2/Protoforge | Found Prototype Processor 22531 | -2/Protoforge | Identified Exp. Core Analyzer 22548 | -2/Protoforge | Spotted Executioner 22550 | -2/Protoforge | Destroyed Executioner 22552 | -2/Protoforge | Spotted Immortal 22558 | -2/Protoforge | Destroyed Immortal 22587 | -2/Protoforge | Destroyed Immortal 22616 | -2/Protoforge | Destroyed 19 combat bots 22718 | -2/Protoforge | Destroyed V812-z 22754 | -2/Protoforge | Spotted Striker 22762 | -2/Protoforge | Destroyed 11 combat bots 22772 | -2/Protoforge | Destroyed Striker 22815 | -2/Protoforge | Destroyed V481-b 22845 | -2/Protoforge | Additional patrols dispatched to research labs 22848 | -2/Protoforge | Found Cep. Nanofilaments [Endoweave] 22848 | -2/Protoforge | Installed Cep. Nanofilaments [Endoweave], 5 resistances modified: KI +10%, TH +10%, EX -50%, S -20%, P +20% 23007 | -2/Protoforge | Destroyed 24 combat bots 23171 | -2/Protoforge | Spotted Hotshot 23187 | -2/Protoforge | Destroyed 10 combat bots 23225 | -2/Protoforge | Destroyed Hotshot 23303 | -2/Protoforge | Spotted Executioner 23332 | -2/Protoforge | Destroyed 28 combat bots 23409 | -2/Protoforge | Spotted Hotshot 23455 | -2/Protoforge | Spotted Striker 23460 | -2/Protoforge | Destroyed Striker 23472 | -2/Protoforge | Spotted Hotshot 23487 | -2/Protoforge | Destroyed Executioner 23491 | -2/Protoforge | Destroyed Decapitator 23514 | -2/Protoforge | Spotted Striker 23514 | -2/Protoforge | Spotted Decapitator 23519 | -2/Protoforge | Reached level 36 23519 | -2/Protoforge | High security lockdown imminent 23519 | -2/Protoforge | Destroyed Superfortress 23526 | -2/Protoforge | Destroyed Decapitator 23537 | -2/Protoforge | Destroyed Striker 23573 | -2/Protoforge | Destroyed Hotshot 23587 | -2/Protoforge | Destroyed Hotshot 23599 | -2/Protoforge | High security lockdown engaged 23631 | -2/Protoforge | Destroyed 33 combat bots 23712 | -2/Protoforge | Destroyed B-90 Cyclops 23719 | -2/Protoforge | Spotted Overlord 23725 | -2/Protoforge | Destroyed Overlord 23729 | -2/Protoforge | Spotted Hotshot 23729 | -2/Protoforge | Spotted Hotshot 23730 | -2/Protoforge | Spotted Hotshot 23730 | -2/Protoforge | Spotted Hotshot 23730 | -2/Protoforge | Spotted Hotshot 23731 | -2/Protoforge | Destroyed Hotshot 23732 | -2/Protoforge | Destroyed Hotshot 23734 | -2/Protoforge | Destroyed Hotshot 23735 | -2/Protoforge | Destroyed Hotshot 23739 | -2/Protoforge | Destroyed Hotshot 23760 | -2/Protoforge | Spotted Hotshot 23760 | -2/Protoforge | Spotted Hotshot 23760 | -2/Protoforge | Spotted Hotshot 23762 | -2/Protoforge | Spotted Hotshot 23762 | -2/Protoforge | Destroyed Hotshot 23763 | -2/Protoforge | Destroyed Hotshot 23764 | -2/Protoforge | Destroyed Hotshot 23766 | -2/Protoforge | Destroyed Hotshot 23777 | -2/Protoforge | Crushed by falling debris 23787 | -2/Protoforge | Destroyed 35 combat bots 23841 | -2/Protoforge | Spotted Investigator 23842 | -2/Protoforge | Scanned by Researcher 23844 | -2/Protoforge | Destroyed Investigator 23867 | -2/Protoforge | Destroyed 18 combat bots 23868 | -2/Protoforge | Spotted Striker 23870 | -2/Protoforge | Destroyed Striker 23884 | -2/Protoforge | Spotted Striker 23884 | -2/Protoforge | Spotted Executioner 23884 | -2/Protoforge | Spotted Executioner 23884 | -2/Protoforge | Spotted Executioner 23884 | -2/Protoforge | Spotted Striker 23886 | -2/Protoforge | Destroyed Executioner 23886 | -2/Protoforge | Destroyed Executioner 23889 | -2/Protoforge | Destroyed Striker 23892 | -2/Protoforge | Destroyed Executioner 23893 | -2/Protoforge | Destroyed Striker 23914 | -2/Protoforge | Destroyed 33 combat bots 23939 | -2/Protoforge | Spotted AP7-3 23939 | -2/Protoforge | Spotted AP7-3 23953 | -2/Protoforge | Destroyed AP7-3 23959 | -2/Protoforge | Destroyed AP7-3 24002 | -2/Protoforge | Destroyed V243-a 24006 | -2/Protoforge | Found Prototype Processor 24006 | -2/Protoforge | Identified Exp. Target Analyzer 24050 | -2/Protoforge | Found Prototype Energy Cannon 24050 | -2/Protoforge | Identified Cld. Nova Cannon 24235 | -2/Protoforge | Destroyed 16 combat bots 24255 | -2/Protoforge | Spotted Striker 24260 | -2/Protoforge | Destroyed Striker 24281 | -2/Protoforge | Destroyed 9 combat bots 24307 | -2/Protoforge | Found Cep. NT7 Matterbank 24327 | -2/Protoforge | Found Cep. NT7 Matterbank 24336 | -2/Protoforge | Destroyed Immortal 24344 | -2/Protoforge | Destroyed Immortal 24450 | -2/Protoforge | Spotted Executioner 24453 | -2/Protoforge | Destroyed Executioner 24453 | -2/Protoforge | Destroyed Executioner 24454 | -2/Protoforge | Destroyed Executioner 24457 | -2/Protoforge | Spotted Investigator 24457 | -2/Protoforge | Spotted Executioner 24458 | -2/Protoforge | Destroyed Executioner 24461 | -2/Protoforge | Destroyed Investigator 24462 | -2/Protoforge | Spotted Executioner 24467 | -2/Protoforge | Destroyed Executioner 24474 | -2/Protoforge | Destroyed Striker 24496 | -2/Protoforge | Destroyed 44 combat bots 24936 | -2/Protoforge | Spotted Striker 24937 | -2/Protoforge | Reached level 37 24937 | -2/Protoforge | Spotted Striker 24938 | -2/Protoforge | Destroyed Executioner 24938 | -2/Protoforge | Destroyed Striker 24939 | -2/Protoforge | Spotted Executioner 24943 | -2/Protoforge | Destroyed Striker 24946 | -2/Protoforge | Destroyed Executioner 24964 | -2/Protoforge | Found Prototype Launcher 24964 | -2/Protoforge | Identified Enh. Gamma Bomb Array 24981 | -2/Protoforge | Destroyed 16 combat bots 25066 | -2/Protoforge | Spotted Striker 25071 | -2/Protoforge | Destroyed Striker 25089 | -2/Protoforge | Spotted Striker 25090 | -2/Protoforge | Spotted Executioner 25092 | -2/Protoforge | Destroyed Executioner 25092 | -2/Protoforge | Destroyed Executioner 25092 | -2/Protoforge | Spotted Executioner 25094 | -2/Protoforge | Spotted Striker 25095 | -2/Protoforge | Destroyed Striker 25098 | -2/Protoforge | Destroyed Executioner 25099 | -2/Protoforge | Spotted Striker 25101 | -2/Protoforge | Destroyed Striker 25106 | -2/Protoforge | Destroyed Striker 25108 | -2/Protoforge | Destroyed Striker 25112 | -2/Protoforge | Spotted Executioner 25113 | -2/Protoforge | Spotted Executioner 25114 | -2/Protoforge | Destroyed Executioner 25114 | -2/Protoforge | Destroyed Executioner 25117 | -2/Protoforge | Destroyed Executioner 25134 | -2/Protoforge | Upgraded with Utility slot (x1) 25143 | -2/Protoforge | Destroyed 66 combat bots 25168 | -2/Protoforge | Found Transdimensional Reconstructor 25172 | -2/Protoforge | Found Cep. Navigation Harness 25205 | -2/Protoforge | Spotted Executioner 25232 | -2/Protoforge | Spotted Executioner 25232 | -2/Protoforge | Spotted Executioner 25251 | -2/Protoforge | Entered Access 25280 | -1/Access | Garrison activated, responded to threat 25291 | -1/Access | Core integrity fell below 50% 25294 | -1/Access | High security lockdown imminent 25330 | -1/Access | Destroyed 18 combat bots 25368 | -1/Access | Destroyed 7 combat bots 25374 | -1/Access | High security lockdown engaged 25389 | -1/Access | Energy Cycler disabled 25459 | -1/Access | Spotted B-99 Colossus 25465 | -1/Access | Destroyed B-99 Colossus 25466 | -1/Access | Spotted B-99 Colossus 25475 | -1/Access | Destroyed B-99 Colossus 25496 | -1/Access | Destroyed 9 combat bots 25514 | -1/Access | Spotted Executioner 25514 | -1/Access | Spotted Executioner 25516 | -1/Access | Destroyed Executioner 25518 | -1/Access | Destroyed Executioner 25546 | -1/Access | Discovered new exit (range 8) 25547 | -1/Access | Identified exit to Command 25548 | -1/Access | Entered Command 25594 | -1/Command | Reached level 38 25594 | -1/Command | High security lockdown imminent 25598 | -1/Command | Spotted M Guard 25598 | -1/Command | Spotted M Guard 25598 | -1/Command | Spotted Combat Programmer 25598 | -1/Command | Spotted Combat Programmer 25630 | -1/Command | Destroyed Combat Programmer 25636 | -1/Command | Destroyed Combat Programmer 25674 | -1/Command | High security lockdown engaged 25716 | -1/Command | Destroyed M Guard 25725 | -1/Command | Destroyed M Guard 25725 | -1/Command | All MAIN.C guards destroyed 25735 | -1/Command | Spotted Striker 25737 | -1/Command | Spotted Striker 25738 | -1/Command | Spotted Striker 25760 | -1/Command | Destroyed Striker 25762 | -1/Command | Destroyed Striker 25763 | -1/Command | Destroyed Striker 25819 | -1/Command | Destroyed 26 combat bots 25833 | -1/Command | Spotted Investigator 25835 | -1/Command | Destroyed Investigator 25950 | -1/Command | Reached level 39 25957 | -1/Command | Destroyed Investigator 25986 | -1/Command | Spotted Striker 25986 | -1/Command | Spotted Striker 25992 | -1/Command | Destroyed Striker 25997 | -1/Command | Destroyed Striker 26018 | -1/Command | Destroyed 223 combat bots 26155 | -1/Command | Spotted Executioner 26155 | -1/Command | Spotted Executioner 26155 | -1/Command | Spotted Striker 26156 | -1/Command | Spotted Striker 26162 | -1/Command | Destroyed Striker 26162 | -1/Command | Destroyed Executioner 26166 | -1/Command | Destroyed Executioner 26169 | -1/Command | Destroyed Striker 26171 | -1/Command | Spotted Striker 26171 | -1/Command | Spotted Executioner 26171 | -1/Command | Spotted Executioner 26171 | -1/Command | Destroyed Executioner 26175 | -1/Command | Spotted Striker 26203 | -1/Command | Destroyed 177 combat bots 26216 | -1/Command | Destroyed Striker 26238 | -1/Command | Destroyed Striker 26287 | -1/Command | Destroyed Executioner 26377 | -1/Command | Destroyed 68 combat bots 26437 | -1/Command | Destroyed 9 combat bots 26449 | -1/Command | Reached level 40 26465 | -1/Command | Met MAIN.C 26478 | -1/Command | 0b10 Conduit disabled 26541 | -1/Command | Destroyed MAIN.C Shell 26542 | -1/Command | MAIN.C activated Command garrisons 26556 | -1/Command | Destroyed MAIN.C 26559 | -1/Command | Identified Subatomic Replicator 26559 | -1/Command | Discovered new exit (range 63) 26559 | -1/Command | Discovered new exit (range 89) 26559 | -1/Command | Extracted map data and part IDs from MAIN.C's data core 26590 | -1/Command | Spotted B-99 Colossus 26598 | -1/Command | Destroyed B-99 Colossus 26633 | -1/Command | Spotted Executioner 26636 | -1/Command | Destroyed Executioner 26657 | -1/Command | Destroyed 10 combat bots 26766 | -1/Command | Found Exp. Core Analyzer 26769 | -1/Command | Used Subatomic Replicator to replicate Exp. Optical Array 26770 | -1/Command | Warped through subspace to slip node 26770 | -1/Command | Discovered new exit (range 4) 26774 | -1/Command | Identified exit to Access_0 26774 | -1/Command | Entered Access_0 26775 | -1/Access_0 | Met Architect 26790 | -1/Access_0 | Architect warped through subspace 26805 | -1/Access_0 | Destroyed A8 26820 | -1/Access_0 | Architect warped through subspace 26834 | -1/Access_0 | Found Prototype Device 26834 | -1/Access_0 | Identified Desublimator 26854 | -1/Access_0 | Architect warped through subspace 26873 | -1/Access_0 | Architect warped through subspace 26879 | -1/Access_0 | A6 warped into view 26893 | -1/Access_0 | Destroyed A6 26896 | -1/Access_0 | Subspace Access Node disabled 26944 | -1/Access_0 | Architect warped through subspace 26957 | -1/Access_0 | Subspace Access Node disabled 26960 | -1/Access_0 | A5 warped into view 26969 | -1/Access_0 | Destroyed A5 27005 | -1/Access_0 | Architect warped through subspace 27034 | -1/Access_0 | Upgraded with Utility slot (x1) 27034 | -1/Access_0 | Found Exp. Powered Armor 27057 | -1/Access_0 | Architect warped through subspace 27081 | -1/Access_0 | A4 warped into view 27094 | -1/Access_0 | Destroyed A4 27100 | -1/Access_0 | Architect warped through subspace 27112 | -1/Access_0 | Architect warped through subspace 27155 | -1/Access_0 | Architect warped through subspace 27173 | -1/Access_0 | Architect warped through subspace 27196 | -1/Access_0 | Architect warped through subspace 27249 | -1/Access_0 | Architect warped through subspace 27271 | -1/Access_0 | Destroyed A2 27272 | -1/Access_0 | Extracted Singularity Gate Test 138-C access codes from A2's data core 27297 | -1/Access_0 | A3 warped into view 27309 | -1/Access_0 | Destroyed A3 27330 | -1/Access_0 | Architect warped through subspace 27331 | -1/Access_0 | Build established: Scavenger-Scout 27357 | -1/Access_0 | Singularity Gate disabled 27395 | -1/Access_0 | Architect warped through subspace 27443 | -1/Access_0 | Architect warped through subspace 27471 | -1/Access_0 | Subspace Access Node disabled 27482 | -1/Access_0 | Architect warped through subspace 27517 | -1/Access_0 | Architect warped through subspace 27548 | -1/Access_0 | Architect warped through subspace 27573 | -1/Access_0 | Architect warped through subspace 27617 | -1/Access_0 | Subspace Access Node disabled 27642 | -1/Access_0 | Destroyed Architect 27643 | -1/Access_0 | Extracted unknown sensor trigger ID from Architect's data core 27643 | -1/Access_0 | Found Hpw. Transdimensional Reconstructor 27729 | -1/Access_0 | Crushed by falling debris 27730 | -1/Access_0 | Warped through subspace to slip node 27730 | -1/Access_0 | Discovered new exit (range 8) 27732 | -1/Access_0 | Identified exit to Surface 27732 | *** | Establishing 0b11! Last Messages --------------- >>Record "Log L.OZLVE4D5" [REDACTED] >>Record "Log L.QL67S5A3" [REDACTED] >>Record "Log L.RSL58V7F" [REDACTED] >>Record "Log L.VFLK3RLK" Warlord has finally begun his main assault, and it's proceeding quite well. All upper Research areas are under control, as are Testing, Quarantine, and Armory. At this rate, MAIN.C and Warlord forces will wipe each other out, or at least severely cripple one another. >>Record "Log L.XLJZXWC5" [REDACTED] >>Record "Log L.Y1U23ASU" [REDACTED] 27729_ The unstable cave ceiling collapses. 27729_ Crushed by falling debris. 27730_ Warped through subspace, drawn to slip node. 27730_ EXIT=FOUND 27732_ EXIT=IDENTIFIED: SURFACE Map ----- +----------------------------------------------------+ | | | | | | | | | | | | | | | | | | | | | | | | | | | | | | | | | ?????????????????????????????????????????????????? | | ?????????????????????????????????????????????????? | | ?????????????????????????????????????????????????? | | ?????????????????????????????????????????????????? | | ?????????????????????????????????????????????????? | | ?????????????????????????????????????????????????? | | ????????????????????????###??????????????????????? | | ???????????????????????## ##?????????????????????? | | ???????????????????????# #?????????????????????? | | ???????????????????????# @ #?????????????????????? | | ??????????????????????## #?????????????????????? | | ??????????????????????# #?????????????????????? | | ??????????????????????# ##?????????????????????? | | ??????????????????????## #?????????????????????? | | ??????????????????????# #?????????????????????? | | ??????????????????????# ##?????????????????????? | | ??????????????????????# < #?????????????????????? | | ??????????????????????# ##?????????????????????? | | ??????????????????????## #??????????????????????? | | ???????????????????????####??????????????????????? | | ?????????????????????????????????????????????????? | | ?????????????????????????????????????????????????? | | ?????????????????????????????????????????????????? | | ?????????????????????????????????????????????????? | | ?????????????????????????????????????????????????? | | ?????????????????????????????????????????????????? | | ?????????????????????????????????????????????????? | | ?????????????????????????????????????????????????? | | ?????????????????????????????????????????????????? | | ?????????????????????????????????????????????????? | | ?????????????????????????????????????????????????? | | ?????????????????????????????????????????????????? | | ?????????????????????????????????????????????????? | | ?????????????????????????????????????????????????? | +----------------------------------------------------+ Best States ------------- Heat Dissipation 118 Energy Generation 96 Energy Capacity 410 Matter Stores 1043 Matter Capacity 1050 Sight Range 19 Robot Scan Range 40 Terrain Scan Range 16 Terrain Scan Density 410 Additional Mass Support 30 Armor Coverage 400 Resistance: KI 40 Resistance: TH 60 Resistance: P 20 Weapon Cycling 30 Evasion (%) 67 Targeting Accuracy 8 Core Analysis 8 Armor Integrity Analysis 40 Kinecelleration 66 Offensive Hacking 15 Defensive Hacking 10 Item Schematics ----------------- Adv. Weight Redist. System | -8/Materials | Extracted Lgt. EM Pulse Cannon | -8/Materials | Extracted Lgt. Nuclear Core | -8/Materials | Extracted Hcp. Matter Pod | -8/Materials | Extracted EM Pulse Gun | -8/Materials | Extracted Seismic Detector | -8/Materials | Extracted Combat Drone Bay | -7/Data Miner | Free Cld. Aerolev Unit | -7/Data Miner | Free Lgt. Regenerative Plating | -7/Data Miner | Free Cld. Plasma Cannon | -7/Data Miner | Free Linear Gravjet | -7/Data Miner | Free Exp. Targeting Computer | -7/Data Miner | Free Adv. Drone Bay | -7/Data Miner | Free Imp. Remote Datajack | -7/Data Miner | Free Imp. Heavy Treads | -7/Data Miner | Free Imp. Arc Projector | -7/Data Miner | Free Flamer | -6/Zion | Free Barrage Gun | -6/Zion | Free Plasma Flamer | -6/Zion | Free Phasing Sabre | -6/Zion | Free Assault Drone Bay | -5/Zhirov | Free Exp. Optical Array | -5/Zhirov | Free Exp. Heat Sink | -5/Zhirov | Free Imp. Arc Thrower | -5/Zhirov | Free Hvy. Hardcell Cannon | -2/Quarantine | Archive Exp. Matter Compressor | -2/Protoforge | Archive Enh. Biometal Leg | -2/Protoforge | Archive Exp. Q-thruster | -2/Protoforge | Archive Centrium Heavy Treads | -2/Protoforge | Archive Exp. Field Recycling Unit | -2/Protoforge | Archive Com. Linear Accelerator | -2/Protoforge | Archive Exp. Shock Absorption System | -2/Protoforge | Archive Graviton Reactor | -2/Protoforge | Archive Imp. Q-thruster | -2/Protoforge | Archive Robot Schematics ------------------ X-67 Chaingunner | -7/Data Miner | Free R-10 Processor | -7/Data Miner | Free G-50 Soldier | -7/Data Miner | Free E-15 Imp | -7/Data Miner | Free X-72 Disruptor | -7/Data Miner | Free K-01 Serf | -3/Research | Archive T-07 Excavator | -3/Research | Archive A-02 Transporter | -3/Research | Archive A-15 Conveyor | -3/Research | Archive R-06 Scavenger | -3/Research | Archive M-14 Sweeper | -3/Research | Archive M-22 Extractor | -3/Research | Archive M-30 Cleanser | -3/Research | Archive M-13 Machinist | -3/Research | Archive M-28 Smith | -3/Research | Archive M-36 Artificer | -3/Research | Archive O-16 Technician | -3/Research | Archive O-24 Administrator | -3/Research | Archive O-32 Director | -3/Research | Archive W-16 Scout | -3/Research | Archive W-25 Informer | -3/Research | Archive W-44 Eye | -3/Research | Archive S-10 Pest | -3/Research | Archive S-27 Virus | -3/Research | Archive S-43 Plague | -3/Research | Archive G-34 Mercenary | -3/Research | Archive G-47 Trooper | -3/Research | Archive G-67 Veteran | -3/Research | Archive G-73 Enforcer | -3/Research | Archive B-36 Bruiser | -3/Research | Archive B-48 Gladiator | -3/Research | Archive B-60 Warrior | -3/Research | Archive B-74 Champion | -3/Research | Archive L-31 Rogue | -3/Research | Archive L-41 Fighter | -3/Research | Archive L-61 Swordsman | -3/Research | Archive Y-45 Defender | -3/Research | Archive Y-54 Guardian | -3/Research | Archive Y-64 Sentinel | -3/Research | Archive Y-72 Warden | -3/Research | Archive D-53 Grenadier | -3/Research | Archive D-63 Destroyer | -3/Research | Archive D-83 Annihilator | -3/Research | Archive X-57 Shotgunner | -3/Research | Archive X-62 Marksman | -3/Research | Archive X-77 Beamer | -3/Research | Archive X-82 Rainmaker | -3/Research | Archive X-87 Electro | -3/Research | Archive H-55 Commando | -3/Research | Archive H-66 Slayer | -3/Research | Archive H-77 Assassin | -3/Research | Archive H-88 Terminator | -3/Research | Archive P-60 Hacker | -3/Research | Archive P-70 Sage | -3/Research | Archive P-80 Master | -3/Research | Archive Fabricated ------------ Nothing Repaired ---------- Nothing Studied --------- None Alien Tech Used ----------------- Integrated Reactor Dimensional Node Initializer Concept Nanofilaments [Endoweave] Subatomic Replicator Transdimensional Reconstructor High-powered Transdimensional Reconstructor Achievements -------------- About That Survey... Dominance Asserted Explosive Keycard I'm Outta Here, Maybe Not Immortal After All Serial Killer Some Acronyms Are Better Than Others Triple Plus Unwanted Attention Worth The Wait Challenges ------------ None RPGLIKE | -11 -10 -10 -10 -9 -8 -8 -7 -7 -7 -7 -7 -7 -6 -6 -6 -6 -6 -6 -6 -5 -5 -5 -5 -5 -4 -4 -4 -4 -4 -3 -3 -3 -2 -2 -2 -1 -1 -1 --------- Run | Yrd Mat Min Exi Min Mat Gar Fac Gar Fac Low Low Dat Pro Fac Was Fac Low Low Zio Pro Fac Upp Upp Zhi Pro Fac Upp Upp War Pro Res Tes Res Qua Frg Acc Com Ac0 Levels Raised 39 | . 3 1 . 1 6 1 5 1 1 . . . 1 . . 2 . . . . 2 . . . 1 2 . . 2 . 1 1 1 1 3 . 3 . XP Earned 62492 | 3000 5293 1060 243 1725 8567 2536 6655 1127 1668 128 85 50 901 303 32 2844 150 187 39 479 2166 208 182 73 1025 2953 156 146 2841 412 1645 1180 1862 844 4403 955 3795 574 XP Spent 59835 | 2960 4490 1550 . 600 9825 . 8850 1050 590 1000 . . . . 1500 1500 . 1400 . . 3620 . . . . 2900 . . 3500 . . 4100 1500 . 5100 . . 3800 Upgrades 85 | 8 11 2 . 1 14 . 9 1 4 1 . . . . 3 2 . 1 . . 16 . . . . 1 . . 3 . . 4 1 . 2 . . 1 Power Slot 1 | . . . . . . . . . . . . . . . . . . . . . . . . . . . . . 1 . . . . . . . . . Propulsion Slot 5 | . 1 1 . . 1 . 1 . . . . . . . . . . . . . . . . . . . . . 1 . . . . . . . . . Utility Slot 12 | . 2 . . . 4 . 2 . . . . . . . . . . . . . . . . . . 1 . . . . . 1 . . 1 . . 1 Weapon Slot 4 | 3 . . . . . . . . . . . . . . . . . 1 . . . . . . . . . . . . . . . . . . . . Core Integrity 6 | . . . . . . . . . . . . . . . . . . . . . 6 . . . . . . . . . . . . . . . . . Heat Dissipation 12 | 3 3 . . . . . . . . . . . . . . . . . . . 6 . . . . . . . . . . . . . . . . . Energy Generation 5 | . 1 . . . 1 . 1 1 . . . . . . . . . . . . . . . . . . . . 1 . . . . . . . . . Mass Support 4 | 1 1 . . . 1 . . . . . . . . . . . . . . . . . . . . . . . . . . . . . 1 . . . Inventory Capacity 6 | 1 1 1 . . . . . . . 1 . . . . . . . . . . 1 . . . . . . . . . . . 1 . . . . . Sight Range 3 | . . . . . . . . . . . . . . . . . . . . . . . . . . . . . . . . 3 . . . . . . Sensor Range 10 | . . . . . 6 . . . 1 . . . . . . . . . . . 3 . . . . . . . . . . . . . . . . . Terrain Scan Density 4 | . . . . . . . 1 . 3 . . . . . . . . . . . . . . . . . . . . . . . . . . . . . Ranged Accuracy 5 | . 2 . . 1 . . . . . . . . . . . 2 . . . . . . . . . . . . . . . . . . . . . . Hack Attack % 3 | . . . . . . . 3 . . . . . . . . . . . . . . . . . . . . . . . . . . . . . . . Hack Defense % 2 | . . . . . 1 . 1 . . . . . . . . . . . . . . . . . . . . . . . . . . . . . . . KI Damage % 3 | . . . . . . . . . . . . . . . 3 . . . . . . . . . . . . . . . . . . . . . . . Protomatter Created 43155 | . 614 29 94 36 636 387 2421 629 3281 384 87 160 302 52 . 3194 447 501 . 222 881 271 345 . 352 1804 224 170 5385 172 1155 1276 984 565 8352 863 5523 1357 Integrity Restored 40294 | . 832 73 177 42 553 344 1591 316 1926 114 55 187 316 . . 2879 266 337 . 200 1814 778 269 . 172 2392 528 70 3246 105 1159 533 914 650 7657 1263 4721 3815 Core 31556 | . 641 57 142 32 398 273 1211 243 1506 89 45 137 253 . . 2352 183 244 . 161 1563 692 74 . 148 2159 183 54 2556 81 853 395 731 495 5951 899 3667 3088 Parts 8738 | . 191 16 35 10 155 71 380 73 420 25 10 50 63 . . 527 83 93 . 39 251 86 195 . 24 233 345 16 690 24 306 138 183 155 1706 364 1054 727 Protomatter Decayed 18268 | . 163 9 31 15 293 174 870 385 1902 342 53 . 88 52 . 1098 128 375 17 99 914 10 199 . 221 627 44 146 2719 102 505 382 2388 324 2369 111 1101 12 Game ------ Seed RagnarokFieldMachine Manual? 1 Play Time 06:50:57 Cumulative 658.5 hours Start 2026.07.11 @ 18:19:27 End 2026.07.12 @ 13:51:30 Sessions 5 Manual Loads 0 Difficulty Rogue Special Mode Winter2019/RPGLIKE Game No. 261 Rogue 107 Adventurer 154 Explorer 0 Win Type 1 Total 22 Types 4/5/4/3/2/1/0/1/1/1 Lore% 95 Gallery% 88 Achievement% 68 Wizard Run 0 Options --------- Layout 0 ASCII 0 Keyboard 0 Movement Numpad Keybinds 0 Fullscreen 2 Font 18/SmallcapsGlow Map View 76x50 Zoom Use 0% Tactical HUD 1 Map Filters NONE Filters NONE Steam 1 RUN: 24d344b5-676e-4fa3-b2ef-0bc200788305